Workbook

Sheet ECHEANCIER
A2: DEPENSES
A3: JOUR MENS. | B3: JOUR TRIMEST. | D3: TIERS | E3: CATEGORIE | F3: MONTANT | G3: MODIF | I3: COMPTABILISATION | J3: MODE PAIEMENT | K3: TIERS
A4: 1 | C4: Vir recu | D4: ARCO-CIPC | E4: Retraite | F4: 730.58 | I4: Retraite | J4: Remise Cheque | K4: B Postale
A5: 1 | C5: Vir recu | D5: ARCO-CPM | E5: Retraite | F5: 725.33 | I5: Rec Div | J5: Carte | K5: Boucherie
B6: 5 | C6: Prel | D6: ST CHRIST | E6: C Port | F6: -40.1 | I6: Dep Div | J6: Prel | K6: Boulangerie
A7: 5 | C7: Prel | D7: UNEO | E7: Dep Div | F7: -204.84 | I7: C Port | J7: Cheque | K7: Carrefour
A8: 10 | C8: Prel | D8: FREE | E8: Dep Div | F8: -42.43 | J8: Vir emis | K8: Dr Duchemin
A9: 10 | C9: Prel | D9: ENF MEKONG | E9: Dep Div | F9: -28 | J9: Retrait | K9: Urssaf
A10: 10 | C10: Prel | D10: A.L.M. | E10: Dep Div | F10: -45 | J10: Vir Recu | K10: Vir Interne
A11: 15 | C11: Prel | D11: T.P.ANG N | E11: Dep Div | F11: -165 | J11: Vers
A12: 17 | C12: Vir recu | D12: LUTZ | E12: C Port | F12: 779
A13: 20 | C13: Prel | D13: ENGIE | E13: Dep Div | F13: -205.87
B14: 26 | C14: Vir recu | D14: MONDIALE | E14: Retraite | F14: 1176.49
A15: 26 | C15: Prel | D15: C. OUEST | E15: Dep Div | F15: -25.35

Sheet TOTAUX
A2: MOIS | B2: RECETTES | D2: C. PORT | E2: DEPENSES | F2: DIVERS
B3: RETRAITE | C3: DIVERSES | E3: DIVERSES
A4: JANVIER | B4: =JANVIER!K21 -> 1455.91 | C4: =JANVIER!L21 -> 45 | D4: =JANVIER!M21 -> 779 | E4: =JANVIER!N21 -> -716.49 | F4: =JANVIER!O21 -> 0
A5: FEVRIER | B5: =FEVRIER!K21 -> 1455.91 | C5: =FEVRIER!L21 -> 0 | D5: =FEVRIER!M21 -> 779 | E5: =FEVRIER!N21 -> -716.49 | F5: =FEVRIER!O21 -> 0
A6: MARS | B6: =MARS!K21 -> 2632.4 | C6: =MARS!L21 -> 0 | D6: =MARS!M21 -> 738.9 | E6: =MARS!N21 -> -716.49 | F6: =MARS!O21 -> 0
A7: AVRIL | B7: =AVRIL!K21 -> 1455.91 | C7: =AVRIL!L21 -> 0 | D7: =AVRIL!M21 -> 779 | E7: =AVRIL!N21 -> -716.49 | F7: =AVRIL!O21 -> 0
A8: MAI | B8: =MAI!K21 -> 1455.91 | C8: =MAI!L21 -> 0 | D8: =MAI!M21 -> 0 | E8: =MAI!N21 -> 0 | F8: =MAI!O21 -> 0
A9: JUIN | B9: =JUIN!K21 -> 0 | C9: =JUIN!L21 -> 0 | D9: =JUIN!M21 -> 0 | E9: =JUIN!N21 -> 0 | F9: =JUIN!O21 -> 0
A10: JUILLET | B10: =JUILLET!K21 -> 0 | C10: =JUILLET!L21 -> 0 | D10: =JUILLET!M21 -> 0 | E10: =JUILLET!N21 -> 0 | F10: =JUILLET!O21 -> 0
A11: AOUT | B11: =AOUT!K21 -> 0 | C11: =AOUT!L21 -> 0 | D11: =AOUT!M21 -> 0 | E11: =AOUT!N21 -> 0 | F11: =AOUT!O21 -> 0
A12: SEPTEMBRE | B12: =SEPTEMBRE!K21 -> 0 | C12: =SEPTEMBRE!L21 -> 0 | D12: =SEPTEMBRE!M21 -> 0 | E12: =SEPTEMBRE!N21 -> 0 | F12: =SEPTEMBRE!O21 -> 0
A13: OCTOBRE | B13: =OCTOBRE!K21 -> 0 | C13: =OCTOBRE!L21 -> 0 | D13: =OCTOBRE!M21 -> 0 | E13: =OCTOBRE!N21 -> 0 | F13: =OCTOBRE!O21 -> 0
A14: NOVEMBRE | B14: =NOVEMBRE!K21 -> 0 | C14: =NOVEMBRE!L21 -> 0 | D14: =NOVEMBRE!M21 -> 0 | E14: =NOVEMBRE!N21 -> 0 | F14: =NOVEMBRE!O21 -> 0
A15: DECEMBRE | B15: =DECEMBRE!K21 -> 0 | C15: =DECEMBRE!L21 -> 0 | D15: =DECEMBRE!M21 -> 0 | E15: =DECEMBRE!N21 -> 0 | F15: =DECEMBRE!O21 -> 0
A17: S/TOTAUX | B17: =SUM(B4:B15) -> 8456.04 | C17: =SUM(C4:C15) -> 45 | D17: =SUM(D4:D15) -> 3075.9 | E17: =SUM(E4:E15) -> -2865.96 | F17: =SUM(F4:F15) -> 0
A18: TOTAUX | C18: =SUM(B17:C17) -> 8501.04 | D18: =SUM(D17:D17) -> 3075.9 | E18: =SUM(E17:E17) -> -2865.96 | F18: =F17 -> 0

Sheet JANVIER
A1: =MID(CELL("filename",A1),FIND("]",CELL("filename",A1))+1,32) -> JANVIER
A2: JOURS | B2: MODE | C2: TIERS | D2: CATEGORIE | E2: BANQUE POSTALE | G2: P | H2: LIVRET A | J2: P | K2: RECETTES | M2: C. PORT | N2: DEPENSES | O2: DIVERS
B3: PAIEMENT | E3: DEB./CRED. | F3: SOLDE | H3: DEB./CRED. | I3: SOLDE | K3: RETRAITE | L3: DIVERSES | N3: DIVERSES
A4: 2018-01-01 | B4: REPORT | F4: 1500 | I4: 15000
A5: =$A$4 -> 2018-01-01 | B5: =ECHEANCIER!C4 -> Vir recu | C5: =ECHEANCIER!D4 -> ARCO-CIPC | D5: =ECHEANCIER!E4 -> Retraite | E5: =IF($A5<=TODAY(),ECHEANCIER!$F4,0) -> 730.58 | F5: =SUM(F4)+(E5) -> 2230.58 | G5: p | I5: =SUM(I4)+(H5) -> 15000 | K5: =IF($D5="Retraite",($E5),0) -> 730.58 | L5: =IF($D5="rec div",($E5+H5),0) -> 0 | M5: =IF($D5="C Port",($E5),0) -> 0 | N5: =IF($D5="dep div",($E5),0) -> 0 | O5: =IF($D5="divers",($E5),0) -> 0
A6: =$A$4 -> 2018-01-01 | B6: =ECHEANCIER!C5 -> Vir recu | C6: =ECHEANCIER!D5 -> ARCO-CPM | D6: =ECHEANCIER!E5 -> Retraite | E6: =IF($A6<=TODAY(),ECHEANCIER!$F5,0) -> 725.33 | F6: =SUM(F5+E6) -> 2955.91 | G6: p | I6: 15000 | K6: 725.33 | L6: 0 | M6: 0 | N6: 0 | O6: 0
A7: 2018-01-02 | B7: Vir Recu | C7: La Poste-Interet | D7: Rec Div | F7: 2955.91 | H7: 45 | I7: 15045 | J7: p | K7: 0 | L7: 45 | M7: 0 | N7: 0 | O7: 0
A8: =$A$4+4 -> 2018-01-05 | B8: =ECHEANCIER!C6 -> Prel | C8: =ECHEANCIER!D6 -> ST CHRIST | D8: =ECHEANCIER!E6 -> C Port | E8: =IF(AND($A8<=TODAY(),$D6="c port",OR($A$1="mars",$A$1="juin",$A$1="septembre",$A$1="decembre")),ECHEANCIER!$F6,0) -> 0 | F8: 2955.91 | I8: 15045 | K8: 0 | L8: 0 | M8: 0 | N8: 0 | O8: 0
A9: =$A$4+4 -> 2018-01-05 | B9: =ECHEANCIER!C7 -> Prel | C9: =ECHEANCIER!D7 -> UNEO | D9: =ECHEANCIER!E7 -> Dep Div | E9: =IF($A9<=TODAY(),ECHEANCIER!$F7,0) -> -204.84 | F9: 2751.07 | G9: p | I9: 15045 | K9: 0 | L9: 0 | M9: 0 | N9: -204.84 | O9: 0
A10: =$A$4+9 -> 2018-01-10 | B10: =ECHEANCIER!C8 -> Prel | C10: =ECHEANCIER!D8 -> FREE | D10: =ECHEANCIER!E8 -> Dep Div | E10: =IF($A10<=TODAY(),ECHEANCIER!$F8,0) -> -42.43 | F10: 2708.64 | G10: p | I10: 15045 | K10: 0 | L10: 0 | M10: 0 | N10: -42.43 | O10: 0
A11: =$A$4+9 -> 2018-01-10 | B11: =ECHEANCIER!C9 -> Prel | C11: =ECHEANCIER!D9 -> ENF MEKONG | D11: =ECHEANCIER!E9 -> Dep Div | E11: =IF($A11<=TODAY(),ECHEANCIER!$F9,0) -> -28 | F11: 2680.64 | G11: p | I11: 15045 | K11: 0 | L11: 0 | M11: 0 | N11: -28 | O11: 0
A12: =$A$4+9 -> 2018-01-10 | B12: =ECHEANCIER!C10 -> Prel | C12: =ECHEANCIER!D10 -> A.L.M. | D12: =ECHEANCIER!E10 -> Dep Div | E12: =IF($A12<=TODAY(),ECHEANCIER!$F10,0) -> -45 | F12: 2635.64 | G12: p | I12: 15045 | K12: 0 | L12: 0 | M12: 0 | N12: -45 | O12: 0
A13: =$A$4+14 -> 2018-01-15 | B13: =ECHEANCIER!C11 -> Prel | C13: =ECHEANCIER!D11 -> T.P.ANG N | D13: =ECHEANCIER!E11 -> Dep Div | E13: =IF($A13<=TODAY(),ECHEANCIER!$F11,0) -> -165 | F13: 2470.64 | G13: p | I13: 15045 | K13: 0 | L13: 0 | M13: 0 | N13: -165 | O13: 0
A14: =$A$4+16 -> 2018-01-17 | B14: =ECHEANCIER!C12 -> Vir recu | C14: =ECHEANCIER!D12 -> LUTZ | D14: =ECHEANCIER!E12 -> C Port | E14: =IF($A14<=TODAY(),ECHEANCIER!$F12,0) -> 779 | F14: 3249.64 | G14: p | I14: 15045 | K14: 0 | L14: 0 | M14: 779 | N14: 0 | O14: 0
A15: =$A$4+19 -> 2018-01-20 | B15: =ECHEANCIER!C13 -> Prel | C15: =ECHEANCIER!D13 -> ENGIE | D15: =ECHEANCIER!E13 -> Dep Div | E15: =IF($A15<=TODAY(),ECHEANCIER!$F13,0) -> -205.87 | F15: 3043.77 | G15: p | I15: 15045 | K15: 0 | L15: 0 | M15: 0 | N15: -205.87 | O15: 0
A16: =$A$4+25 -> 2018-01-26 | B16: =ECHEANCIER!C14 -> Vir recu | C16: =ECHEANCIER!D14 -> MONDIALE | D16: =ECHEANCIER!E14 -> Retraite | E16: =IF(AND($A16<=TODAY(),$D16="retraite",OR($A$1="mars",$A$1="juin",$A$1="septembre",$A$1="decembre")),ECHEANCIER!$F14,0) -> 0 | F16: 3043.77 | G16: p | I16: 15045 | K16: 0 | L16: 0 | M16: 0 | N16: 0 | O16: 0
A17: =$A$4+25 -> 2018-01-26 | B17: =ECHEANCIER!C15 -> Prel | C17: =ECHEANCIER!D15 -> C. OUEST | D17: =ECHEANCIER!E15 -> Dep Div | E17: =IF($A17<=TODAY(),ECHEANCIER!$F15,0) -> -25.35 | F17: 3018.42 | G17: p | I17: 15045 | K17: 0 | L17: 0 | M17: 0 | N17: -25.35 | O17: 0
F18: =SUM(F17+E18) -> 3018.42 | I18: =SUM(I17)+(H18) -> 15045 | K18: 0 | L18: 0 | M18: 0 | N18: 0 | O18: 0
F19: 3018.42 | I19: 15045 | K19: 0 | L19: 0 | M19: 0 | N19: 0 | O19: 0
F20: 3018.42 | I20: 15045 | K20: 0 | L20: 0 | M20: 0 | N20: 0 | O20: 0
E21: =SUM(E5:E20) -> 1518.42 | H21: =SUM(H5:H20) -> 45 | K21: =SUM(K5:K20) -> 1455.91 | L21: =SUM(L5:L20) -> 45 | M21: =SUM(M5:M20) -> 779 | N21: =SUM(N5:N20) -> -716.49 | O21: =SUM(O5:O20) -> 0
F22: =F20 -> 3018.42 | I22: =I20 -> 15045 | K22: =(K21+K4) -> 1455.91 | L22: =(L21+L4) -> 45 | M22: =(M21+M4) -> 779 | N22: =(N21+N4) -> -716.49 | O22: =(O21+O4) -> 0
C24: CONTROLE | F24: =(F22)+(I22) -> 18063.42 | K24: =SUM(K21:O21) -> 1563.42 | M24: =(F4)+(I4)+(K24) -> 18063.42

Sheet FEVRIER
A1: =MID(CELL("filename",A1),FIND("]",CELL("filename",A1))+1,32) -> FEVRIER
A2: JOURS | B2: MODE | C2: TIERS | D2: CATEGORIE | E2: BANQUE POSTALE | G2: P | H2: LIVRET A | J2: P | K2: RECETTES | M2: C. PORT | N2: DEPENSES | O2: DIVERS
B3: PAIEMENT | E3: DEB./CRED. | F3: SOLDE | H3: DEB./CRED. | I3: SOLDE | K3: RETRAITE | L3: DIVERSES | N3: DIVERSES
A4: 2018-02-01 | B4: REPORT | F4: =JANVIER!F22 -> 3018.42 | I4: =JANVIER!I22 -> 15045 | K4: =JANVIER!K22 -> 1455.91 | L4: =JANVIER!L22 -> 45 | M4: =JANVIER!M22 -> 779 | N4: =JANVIER!N22 -> -716.49 | O4: =JANVIER!O22 -> 0
A5: =$A$4 -> 2018-02-01 | B5: =ECHEANCIER!C4 -> Vir recu | C5: =ECHEANCIER!D4 -> ARCO-CIPC | D5: =ECHEANCIER!E4 -> Retraite | E5: =IF($A5<=TODAY(),ECHEANCIER!$F4,0) -> 730.58 | F5: =SUM(F4)+(E5) -> 3749 | I5: =SUM(I4)+(H5) -> 15045 | K5: =IF($D5="Retraite",($E5),0) -> 730.58 | L5: =IF($D5="rec div",($E5+H5),0) -> 0 | M5: =IF($D5="C Port",($E5),0) -> 0 | N5: =IF($D5="dep div",($E5),0) -> 0 | O5: =IF($D5="divers",($E5),0) -> 0
A6: =$A$4 -> 2018-02-01 | B6: =ECHEANCIER!C5 -> Vir recu | C6: =ECHEANCIER!D5 -> ARCO-CPM | D6: =ECHEANCIER!E5 -> Retraite | E6: =IF($A6<=TODAY(),ECHEANCIER!$F5,0) -> 725.33 | F6: =SUM(F5+E6) -> 4474.33 | I6: =SUM(I5)+(H6) -> 15045 | K6: 725.33 | L6: 0 | M6: 0 | N6: 0 | O6: 0
A7: =$A$4+4 -> 2018-02-05 | B7: =ECHEANCIER!C6 -> Prel | C7: =ECHEANCIER!D6 -> ST CHRIST | D7: =ECHEANCIER!E6 -> C Port | E7: =IF(AND($A7<=TODAY(),$D5="c port",OR($A$1="mars",$A$1="juin",$A$1="septembre",$A$1="decembre")),ECHEANCIER!$F5,0) -> 0 | F7: 4474.33 | I7: 15045 | K7: 0 | L7: 0 | M7: 0 | N7: 0 | O7: 0
A8: =$A$4+4 -> 2018-02-05 | B8: =ECHEANCIER!C7 -> Prel | C8: =ECHEANCIER!D7 -> UNEO | D8: =ECHEANCIER!E7 -> Dep Div | E8: =IF($A8<=TODAY(),ECHEANCIER!$F7,0) -> -204.84 | F8: 4269.49 | I8: 15045 | K8: 0 | L8: 0 | M8: 0 | N8: -204.84 | O8: 0
A9: =$A$4+9 -> 2018-02-10 | B9: =ECHEANCIER!C8 -> Prel | C9: =ECHEANCIER!D8 -> FREE | D9: =ECHEANCIER!E8 -> Dep Div | E9: =IF($A9<=TODAY(),ECHEANCIER!$F8,0) -> -42.43 | F9: 4227.06 | I9: =SUM(I8)+(H9) -> 15045 | K9: 0 | L9: 0 | M9: 0 | N9: -42.43 | O9: 0
A10: =$A$4+9 -> 2018-02-10 | B10: =ECHEANCIER!C9 -> Prel | C10: =ECHEANCIER!D9 -> ENF MEKONG | D10: =ECHEANCIER!E9 -> Dep Div | E10: =IF($A10<=TODAY(),ECHEANCIER!$F9,0) -> -28 | F10: 4199.06 | I10: 15045 | K10: 0 | L10: 0 | M10: 0 | N10: -28 | O10: 0
A11: =$A$4+9 -> 2018-02-10 | B11: =ECHEANCIER!C10 -> Prel | C11: =ECHEANCIER!D10 -> A.L.M. | D11: =ECHEANCIER!E10 -> Dep Div | E11: =IF($A11<=TODAY(),ECHEANCIER!$F10,0) -> -45 | F11: 4154.06 | I11: 15045 | K11: 0 | L11: 0 | M11: 0 | N11: -45 | O11: 0
A12: =$A$4+14 -> 2018-02-15 | B12: =ECHEANCIER!C11 -> Prel | C12: =ECHEANCIER!D11 -> T.P.ANG N | D12: =ECHEANCIER!E11 -> Dep Div | E12: =IF($A12<=TODAY(),ECHEANCIER!$F11,0) -> -165 | F12: 3989.06 | I12: 15045 | K12: 0 | L12: 0 | M12: 0 | N12: -165 | O12: 0
A13: =$A$4+16 -> 2018-02-17 | B13: =ECHEANCIER!C12 -> Vir recu | C13: =ECHEANCIER!D12 -> LUTZ | D13: =ECHEANCIER!E12 -> C Port | E13: =IF($A13<=TODAY(),ECHEANCIER!$F12,0) -> 779 | F13: 4768.06 | I13: 15045 | K13: 0 | L13: 0 | M13: 779 | N13: 0 | O13: 0
A14: =$A$4+19 -> 2018-02-20 | B14: =ECHEANCIER!C13 -> Prel | C14: =ECHEANCIER!D13 -> ENGIE | D14: =ECHEANCIER!E13 -> Dep Div | E14: =IF($A14<=TODAY(),ECHEANCIER!$F13,0) -> -205.87 | F14: 4562.19 | I14: 15045 | K14: 0 | L14: 0 | M14: 0 | N14: -205.87 | O14: 0
A15: =$A$4+25 -> 2018-02-26 | B15: =ECHEANCIER!C14 -> Vir recu | C15: =ECHEANCIER!D14 -> MONDIALE | D15: =ECHEANCIER!E14 -> Retraite | E15: =IF(AND($A15<=TODAY(),$D15="retraite",OR($A$1="mars",$A$1="juin",$A$1="septembre",$A$1="decembre")),ECHEANCIER!$F14,0) -> 0 | F15: 4562.19 | I15: 15045 | K15: 0 | L15: 0 | M15: 0 | N15: 0 | O15: 0
A16: =$A$4+25 -> 2018-02-26 | B16: =ECHEANCIER!C15 -> Prel | C16: =ECHEANCIER!D15 -> C. OUEST | D16: =ECHEANCIER!E15 -> Dep Div | E16: =IF($A16<=TODAY(),ECHEANCIER!$F15,0) -> -25.35 | F16: 4536.84 | I16: 15045 | K16: 0 | L16: 0 | M16: 0 | N16: -25.35 | O16: 0
F17: 4536.84 | I17: 15045 | K17: 0 | L17: 0 | M17: 0 | N17: 0 | O17: 0
F18: 4536.84 | I18: 15045 | K18: 0 | L18: 0 | M18: 0 | N18: 0 | O18: 0
F19: 4536.84 | I19: 15045 | K19: 0 | L19: 0 | M19: 0 | N19: 0 | O19: 0
F20: 4536.84 | I20: 15045 | K20: 0 | L20: 0 | M20: 0 | N20: 0 | O20: 0
E21: =SUM(E5:E20) -> 1518.42 | H21: =SUM(H5:H20) -> 0 | K21: =SUM(K5:K20) -> 1455.91 | L21: =SUM(L5:L20) -> 0 | M21: =SUM(M5:M20) -> 779 | N21: =SUM(N5:N20) -> -716.49 | O21: =SUM(O5:O20) -> 0
F22: =F20 -> 4536.84 | I22: =I20 -> 15045 | K22: =(K21+K4) -> 2911.82 | L22: =(L21+L4) -> 45 | M22: =(M21+M4) -> 1558 | N22: =(N21+N4) -> -1432.98 | O22: =(O21+O4) -> 0
C24: CONTROLE | F24: =(F22)+(I22) -> 19581.84 | K24: =SUM(K21:O21) -> 1518.42 | M24: =(F4)+(I4)+(K24) -> 19581.84

Sheet MARS
A1: =MID(CELL("filename",A1),FIND("]",CELL("filename",A1))+1,32) -> MARS
A2: JOURS | B2: MODE | C2: TIERS | D2: CATEGORIE | E2: BANQUE POSTALE | G2: P | H2: LIVRET A | J2: P | K2: RECETTES | M2: C. PORT | N2: DEPENSES | O2: DIVERS
B3: PAIEMENT | E3: DEB./CRED. | F3: SOLDE | H3: DEB./CRED. | I3: SOLDE | K3: RETRAITE | L3: DIVERSES | N3: DIVERSES
A4: 2018-03-01 | B4: REPORT | F4: =FEVRIER!F22 -> 4536.84 | H4: =JANVIER!H22 -> 0 | I4: =FEVRIER!I22 -> 15045 | K4: =FEVRIER!K22 -> 2911.82 | L4: =FEVRIER!L22 -> 45 | M4: =FEVRIER!M22 -> 1558 | N4: =FEVRIER!N22 -> -1432.98 | O4: =FEVRIER!O22 -> 0
A5: =$A$4 -> 2018-03-01 | B5: =ECHEANCIER!C4 -> Vir recu | C5: =ECHEANCIER!D4 -> ARCO-CIPC | D5: =ECHEANCIER!E4 -> Retraite | E5: =IF($A5<=TODAY(),ECHEANCIER!$F4,0) -> 730.58 | F5: =SUM(F4)+(E5) -> 5267.42 | I5: =SUM(I4)+(H5) -> 15045 | K5: =IF($D5="Retraite",($E5),0) -> 730.58 | L5: =IF($D5="rec div",($E5+H5),0) -> 0 | M5: =IF($D5="C Port",($E5),0) -> 0 | N5: =IF($D5="dep div",($E5),0) -> 0 | O5: =IF($D5="divers",($E5),0) -> 0
A6: =$A$4 -> 2018-03-01 | B6: =ECHEANCIER!C5 -> Vir recu | C6: =ECHEANCIER!D5 -> ARCO-CPM | D6: =ECHEANCIER!E5 -> Retraite | E6: =IF($A6<=TODAY(),ECHEANCIER!$F5,0) -> 725.33 | F6: =SUM(F5+E6) -> 5992.75 | I6: =SUM(I5)+(H6) -> 15045 | K6: 725.33 | L6: 0 | M6: 0 | N6: 0 | O6: 0
A7: =$A$4+4 -> 2018-03-05 | B7: =ECHEANCIER!C6 -> Prel | C7: =ECHEANCIER!D6 -> ST CHRIST | D7: =ECHEANCIER!E6 -> C Port | E7: =IF(AND($A7<=TODAY(),$D7="c port",OR($A$1="mars",$A$1="juin",$A$1="septembre",$A$1="decembre")),ECHEANCIER!$F6,0) -> -40.1 | F7: 5952.65 | I7: 15045 | K7: 0 | L7: 0 | M7: -40.1 | N7: 0 | O7: 0
A8: =$A$4+4 -> 2018-03-05 | B8: =ECHEANCIER!C7 -> Prel | C8: =ECHEANCIER!D7 -> UNEO | D8: =ECHEANCIER!E7 -> Dep Div | E8: =IF($A8<=TODAY(),ECHEANCIER!$F7,0) -> -204.84 | F8: 5747.81 | I8: 15045 | K8: 0 | L8: 0 | M8: 0 | N8: -204.84 | O8: 0
A9: =$A$4+9 -> 2018-03-10 | B9: =ECHEANCIER!C8 -> Prel | C9: =ECHEANCIER!D8 -> FREE | D9: =ECHEANCIER!E8 -> Dep Div | E9: =IF($A9<=TODAY(),ECHEANCIER!$F8,0) -> -42.43 | F9: 5705.38 | I9: =SUM(I8)+(H9) -> 15045 | K9: 0 | L9: 0 | M9: 0 | N9: -42.43 | O9: 0
A10: =$A$4+9 -> 2018-03-10 | B10: =ECHEANCIER!C9 -> Prel | C10: =ECHEANCIER!D9 -> ENF MEKONG | D10: =ECHEANCIER!E9 -> Dep Div | E10: =IF($A10<=TODAY(),ECHEANCIER!$F9,0) -> -28 | F10: 5677.38 | I10: 15045 | K10: 0 | L10: 0 | M10: 0 | N10: -28 | O10: 0
A11: =$A$4+9 -> 2018-03-10 | B11: =ECHEANCIER!C10 -> Prel | C11: =ECHEANCIER!D10 -> A.L.M. | D11: =ECHEANCIER!E10 -> Dep Div | E11: =IF($A11<=TODAY(),ECHEANCIER!$F10,0) -> -45 | F11: 5632.38 | I11: 15045 | K11: 0 | L11: 0 | M11: 0 | N11: -45 | O11: 0
A12: =$A$4+14 -> 2018-03-15 | B12: =ECHEANCIER!C11 -> Prel | C12: =ECHEANCIER!D11 -> T.P.ANG N | D12: =ECHEANCIER!E11 -> Dep Div | E12: =IF($A12<=TODAY(),ECHEANCIER!$F11,0) -> -165 | F12: 5467.38 | I12: 15045 | K12: 0 | L12: 0 | M12: 0 | N12: -165 | O12: 0
A13: =$A$4+16 -> 2018-03-17 | B13: =ECHEANCIER!C12 -> Vir recu | C13: =ECHEANCIER!D12 -> LUTZ | D13: =ECHEANCIER!E12 -> C Port | E13: =IF($A13<=TODAY(),ECHEANCIER!$F12,0) -> 779 | F13: 6246.38 | I13: 15045 | K13: 0 | L13: 0 | M13: 779 | N13: 0 | O13: 0
A14: =$A$4+19 -> 2018-03-20 | B14: =ECHEANCIER!C13 -> Prel | C14: =ECHEANCIER!D13 -> ENGIE | D14: =ECHEANCIER!E13 -> Dep Div | E14: =IF($A14<=TODAY(),ECHEANCIER!$F13,0) -> -205.87 | F14: 6040.51 | I14: 15045 | K14: 0 | L14: 0 | M14: 0 | N14: -205.87 | O14: 0
A15: =$A$4+25 -> 2018-03-26 | B15: =ECHEANCIER!C14 -> Vir recu | C15: =ECHEANCIER!D14 -> MONDIALE | D15: =ECHEANCIER!E14 -> Retraite | E15: =IF(AND($A15<=TODAY(),$D15="retraite",OR($A$1="mars",$A$1="juin",$A$1="septembre",$A$1="decembre")),ECHEANCIER!$F14,0) -> 1176.49 | F15: 7217 | I15: 15045 | K15: 1176.49 | L15: 0 | M15: 0 | N15: 0 | O15: 0
A16: =$A$4+25 -> 2018-03-26 | B16: =ECHEANCIER!C15 -> Prel | C16: =ECHEANCIER!D15 -> C. OUEST | D16: =ECHEANCIER!E15 -> Dep Div | E16: =IF($A16<=TODAY(),ECHEANCIER!$F15,0) -> -25.35 | F16: 7191.65 | I16: 15045 | K16: 0 | L16: 0 | M16: 0 | N16: -25.35 | O16: 0
F17: 7191.65 | I17: 15045 | K17: 0 | L17: 0 | M17: 0 | N17: 0 | O17: 0
F18: 7191.65 | I18: 15045 | K18: 0 | L18: 0 | M18: 0 | N18: 0 | O18: 0
F19: 7191.65 | I19: 15045 | K19: 0 | L19: 0 | M19: 0 | N19: 0 | O19: 0
F20: 7191.65 | I20: 15045 | K20: 0 | L20: 0 | M20: 0 | N20: 0 | O20: 0
E21: =SUM(E5:E20) -> 2654.81 | H21: =SUM(H5:H20) -> 0 | K21: =SUM(K5:K20) -> 2632.4 | L21: =SUM(L5:L20) -> 0 | M21: =SUM(M5:M20) -> 738.9 | N21: =SUM(N5:N20) -> -716.49 | O21: =SUM(O5:O20) -> 0
F22: =F20 -> 7191.65 | I22: =I20 -> 15045 | K22: =(K21+K4) -> 5544.22 | L22: =(L21+L4) -> 45 | M22: =(M21+M4) -> 2296.9 | N22: =(N21+N4) -> -2149.47 | O22: =(O21+O4) -> 0
C24: CONTROLE | F24: =(F22)+(I22) -> 22236.65 | K24: =SUM(K21:O21) -> 2654.81 | M24: =(F4)+(I4)+(K24) -> 22236.65

Sheet AVRIL
A1: =MID(CELL("filename",A1),FIND("]",CELL("filename",A1))+1,32) -> AVRIL
A2: JOURS | B2: MODE | C2: TIERS | D2: CATEGORIE | E2: BANQUE POSTALE | G2: P | H2: LIVRET A | J2: P | K2: RECETTES | M2: C. PORT | N2: DEPENSES | O2: DIVERS
B3: PAIEMENT | E3: DEB./CRED. | F3: SOLDE | H3: DEB./CRED. | I3: SOLDE | K3: RETRAITE | L3: DIVERSES | N3: DIVERSES
A4: 2018-04-01 | B4: REPORT | F4: =MARS!F22 -> 7191.65 | H4: =JANVIER!H22 -> 0 | I4: =MARS!I22 -> 15045 | K4: =MARS!K22 -> 5544.22 | L4: =MARS!L22 -> 45 | M4: =MARS!M22 -> 2296.9 | N4: =MARS!N22 -> -2149.47 | O4: =MARS!O22 -> 0
A5: =$A$4 -> 2018-04-01 | B5: =ECHEANCIER!C4 -> Vir recu | C5: =ECHEANCIER!D4 -> ARCO-CIPC | D5: =ECHEANCIER!E4 -> Retraite | E5: =IF($A5<=TODAY(),ECHEANCIER!$F4,0) -> 730.58 | F5: =SUM(F4)+(E5) -> 7922.23 | I5: =SUM(I4)+(H5) -> 15045 | K5: =IF($D5="Retraite",($E5),0) -> 730.58 | L5: =IF($D5="rec div",($E5+H5),0) -> 0 | M5: =IF($D5="C Port",($E5),0) -> 0 | N5: =IF($D5="dep div",($E5),0) -> 0 | O5: =IF($D5="divers",($E5),0) -> 0
A6: =$A$4 -> 2018-04-01 | B6: =ECHEANCIER!C5 -> Vir recu | C6: =ECHEANCIER!D5 -> ARCO-CPM | D6: =ECHEANCIER!E5 -> Retraite | E6: =IF($A6<=TODAY(),ECHEANCIER!$F5,0) -> 725.33 | F6: =SUM(F5+E6) -> 8647.56 | I6: =SUM(I5)+(H6) -> 15045 | K6: 725.33 | L6: 0 | M6: 0 | N6: 0 | O6: 0
A7: =$A$4+4 -> 2018-04-05 | B7: =ECHEANCIER!C6 -> Prel | C7: =ECHEANCIER!D6 -> ST CHRIST | D7: =ECHEANCIER!E6 -> C Port | E7: =IF(AND($A7<=TODAY(),$D7="c port",OR($A$1="mars",$A$1="juin",$A$1="septembre",$A$1="decembre")),ECHEANCIER!$F6,0) -> 0 | F7: 8647.56 | I7: 15045 | K7: 0 | L7: 0 | M7: 0 | N7: 0 | O7: 0
A8: =$A$4+4 -> 2018-04-05 | B8: =ECHEANCIER!C7 -> Prel | C8: =ECHEANCIER!D7 -> UNEO | D8: =ECHEANCIER!E7 -> Dep Div | E8: =IF($A8<=TODAY(),ECHEANCIER!$F7,0) -> -204.84 | F8: 8442.72 | I8: 15045 | K8: 0 | L8: 0 | M8: 0 | N8: -204.84 | O8: 0
A9: =$A$4+9 -> 2018-04-10 | B9: =ECHEANCIER!C8 -> Prel | C9: =ECHEANCIER!D8 -> FREE | D9: =ECHEANCIER!E8 -> Dep Div | E9: =IF($A9<=TODAY(),ECHEANCIER!$F8,0) -> -42.43 | F9: 8400.29 | I9: =SUM(I8)+(H9) -> 15045 | K9: 0 | L9: 0 | M9: 0 | N9: -42.43 | O9: 0
A10: =$A$4+9 -> 2018-04-10 | B10: =ECHEANCIER!C9 -> Prel | C10: =ECHEANCIER!D9 -> ENF MEKONG | D10: =ECHEANCIER!E9 -> Dep Div | E10: =IF($A10<=TODAY(),ECHEANCIER!$F9,0) -> -28 | F10: 8372.29 | I10: 15045 | K10: 0 | L10: 0 | M10: 0 | N10: -28 | O10: 0
A11: =$A$4+9 -> 2018-04-10 | B11: =ECHEANCIER!C10 -> Prel | C11: =ECHEANCIER!D10 -> A.L.M. | D11: =ECHEANCIER!E10 -> Dep Div | E11: =IF($A11<=TODAY(),ECHEANCIER!$F10,0) -> -45 | F11: 8327.29 | I11: 15045 | K11: 0 | L11: 0 | M11: 0 | N11: -45 | O11: 0
A12: =$A$4+14 -> 2018-04-15 | B12: =ECHEANCIER!C11 -> Prel | C12: =ECHEANCIER!D11 -> T.P.ANG N | D12: =ECHEANCIER!E11 -> Dep Div | E12: =IF($A12<=TODAY(),ECHEANCIER!$F11,0) -> -165 | F12: 8162.29 | I12: 15045 | K12: 0 | L12: 0 | M12: 0 | N12: -165 | O12: 0
A13: =$A$4+16 -> 2018-04-17 | B13: =ECHEANCIER!C12 -> Vir recu | C13: =ECHEANCIER!D12 -> LUTZ | D13: =ECHEANCIER!E12 -> C Port | E13: =IF($A13<=TODAY(),ECHEANCIER!$F12,0) -> 779 | F13: 8941.29 | I13: 15045 | K13: 0 | L13: 0 | M13: 779 | N13: 0 | O13: 0
A14: =$A$4+19 -> 2018-04-20 | B14: =ECHEANCIER!C13 -> Prel | C14: =ECHEANCIER!D13 -> ENGIE | D14: =ECHEANCIER!E13 -> Dep Div | E14: =IF($A14<=TODAY(),ECHEANCIER!$F13,0) -> -205.87 | F14: 8735.42 | I14: 15045 | K14: 0 | L14: 0 | M14: 0 | N14: -205.87 | O14: 0
A15: =$A$4+25 -> 2018-04-26 | B15: =ECHEANCIER!C14 -> Vir recu | C15: =ECHEANCIER!D14 -> MONDIALE | D15: =ECHEANCIER!E14 -> Retraite | E15: =IF(AND($A15<=TODAY(),$D15="retraite",OR($A$1="mars",$A$1="juin",$A$1="septembre",$A$1="decembre")),ECHEANCIER!$F14,0) -> 0 | F15: 8735.42 | I15: 15045 | K15: 0 | L15: 0 | M15: 0 | N15: 0 | O15: 0
A16: =$A$4+25 -> 2018-04-26 | B16: =ECHEANCIER!C15 -> Prel | C16: =ECHEANCIER!D15 -> C. OUEST | D16: =ECHEANCIER!E15 -> Dep Div | E16: =IF($A16<=TODAY(),ECHEANCIER!$F15,0) -> -25.35 | F16: 8710.07 | I16: 15045 | K16: 0 | L16: 0 | M16: 0 | N16: -25.35 | O16: 0
F17: 8710.07 | I17: 15045 | K17: 0 | L17: 0 | M17: 0 | N17: 0 | O17: 0
F18: 8710.07 | I18: 15045 | K18: 0 | L18: 0 | M18: 0 | N18: 0 | O18: 0
F19: 8710.07 | I19: 15045 | K19: 0 | L19: 0 | M19: 0 | N19: 0 | O19: 0
F20: 8710.07 | I20: 15045 | K20: 0 | L20: 0 | M20: 0 | N20: 0 | O20: 0
E21: =SUM(E5:E20) -> 1518.42 | H21: =SUM(H5:H20) -> 0 | K21: =SUM(K5:K20) -> 1455.91 | L21: =SUM(L5:L20) -> 0 | M21: =SUM(M5:M20) -> 779 | N21: =SUM(N5:N20) -> -716.49 | O21: =SUM(O5:O20) -> 0
F22: =F20 -> 8710.07 | I22: =I20 -> 15045 | K22: =(K21+K4) -> 7000.13 | L22: =(L21+L4) -> 45 | M22: =(M21+M4) -> 3075.9 | N22: =(N21+N4) -> -2865.96 | O22: =(O21+O4) -> 0
C24: CONTROLE | F24: =(F22)+(I22) -> 23755.07 | K24: =SUM(K21:O21) -> 1518.42 | M24: =(F4)+(I4)+(K24) -> 23755.07

Sheet MAI
A1: =MID(CELL("filename",A1),FIND("]",CELL("filename",A1))+1,32) -> MAI
A2: JOURS | B2: MODE | C2: TIERS | D2: CATEGORIE | E2: BANQUE POSTALE | G2: P | H2: LIVRET A | J2: P | K2: RECETTES | M2: C. PORT | N2: DEPENSES | O2: DIVERS
B3: PAIEMENT | E3: DEB./CRED. | F3: SOLDE | H3: DEB./CRED. | I3: SOLDE | K3: RETRAITE | L3: DIVERSES | N3: DIVERSES
A4: 2018-05-01 | B4: REPORT | F4: =AVRIL!F22 -> 8710.07 | H4: =JANVIER!H22 -> 0 | I4: =AVRIL!I22 -> 15045 | K4: =AVRIL!K22 -> 7000.13 | L4: =AVRIL!L22 -> 45 | M4: =AVRIL!M22 -> 3075.9 | N4: =AVRIL!N22 -> -2865.96 | O4: =AVRIL!O22 -> 0
A5: =$A$4 -> 2018-05-01 | B5: =ECHEANCIER!C4 -> Vir recu | C5: =ECHEANCIER!D4 -> ARCO-CIPC | D5: =ECHEANCIER!E4 -> Retraite | E5: =IF($A5<=TODAY(),ECHEANCIER!$F4,0) -> 730.58 | F5: =SUM(F4)+(E5) -> 9440.65 | I5: =SUM(I4)+(H5) -> 15045 | K5: =IF($D5="Retraite",($E5),0) -> 730.58 | L5: =IF($D5="rec div",($E5+H5),0) -> 0 | M5: =IF($D5="C Port",($E5),0) -> 0 | N5: =IF($D5="dep div",($E5),0) -> 0 | O5: =IF($D5="divers",($E5),0) -> 0
A6: =$A$4 -> 2018-05-01 | B6: =ECHEANCIER!C5 -> Vir recu | C6: =ECHEANCIER!D5 -> ARCO-CPM | D6: =ECHEANCIER!E5 -> Retraite | E6: =IF($A6<=TODAY(),ECHEANCIER!$F5,0) -> 725.33 | F6: =SUM(F5+E6) -> 10165.98 | I6: =SUM(I5)+(H6) -> 15045 | K6: 725.33 | L6: 0 | M6: 0 | N6: 0 | O6: 0
A7: =$A$4+4 -> 2018-05-05 | B7: =ECHEANCIER!C6 -> Prel | C7: =ECHEANCIER!D6 -> ST CHRIST | D7: =ECHEANCIER!E6 -> C Port | E7: =IF(AND($A7<=TODAY(),$D7="c port",OR($A$1="mars",$A$1="juin",$A$1="septembre",$A$1="decembre")),ECHEANCIER!$F6,0) -> 0 | F7: 10165.98 | I7: 15045 | K7: 0 | L7: 0 | M7: 0 | N7: 0 | O7: 0
A8: =$A$4+4 -> 2018-05-05 | B8: =ECHEANCIER!C7 -> Prel | C8: =ECHEANCIER!D7 -> UNEO | D8: =ECHEANCIER!E7 -> Dep Div | E8: =IF($A8<=TODAY(),ECHEANCIER!$F7,0) -> 0 | F8: 10165.98 | I8: 15045 | K8: 0 | L8: 0 | M8: 0 | N8: 0 | O8: 0
A9: =$A$4+9 -> 2018-05-10 | B9: =ECHEANCIER!C8 -> Prel | C9: =ECHEANCIER!D8 -> FREE | D9: =ECHEANCIER!E8 -> Dep Div | E9: =IF($A9<=TODAY(),ECHEANCIER!$F8,0) -> 0 | F9: 10165.98 | I9: =SUM(I8)+(H9) -> 15045 | K9: 0 | L9: 0 | M9: 0 | N9: 0 | O9: 0
A10: =$A$4+9 -> 2018-05-10 | B10: =ECHEANCIER!C9 -> Prel | C10: =ECHEANCIER!D9 -> ENF MEKONG | D10: =ECHEANCIER!E9 -> Dep Div | E10: =IF($A10<=TODAY(),ECHEANCIER!$F9,0) -> 0 | F10: 10165.98 | I10: 15045 | K10: 0 | L10: 0 | M10: 0 | N10: 0 | O10: 0
A11: =$A$4+9 -> 2018-05-10 | B11: =ECHEANCIER!C10 -> Prel | C11: =ECHEANCIER!D10 -> A.L.M. | D11: =ECHEANCIER!E10 -> Dep Div | E11: =IF($A11<=TODAY(),ECHEANCIER!$F10,0) -> 0 | F11: 10165.98 | I11: 15045 | K11: 0 | L11: 0 | M11: 0 | N11: 0 | O11: 0
A12: =$A$4+14 -> 2018-05-15 | B12: =ECHEANCIER!C11 -> Prel | C12: =ECHEANCIER!D11 -> T.P.ANG N | D12: =ECHEANCIER!E11 -> Dep Div | E12: =IF($A12<=TODAY(),ECHEANCIER!$F11,0) -> 0 | F12: 10165.98 | I12: 15045 | K12: 0 | L12: 0 | M12: 0 | N12: 0 | O12: 0
A13: =$A$4+16 -> 2018-05-17 | B13: =ECHEANCIER!C12 -> Vir recu | C13: =ECHEANCIER!D12 -> LUTZ | D13: =ECHEANCIER!E12 -> C Port | E13: =IF($A13<=TODAY(),ECHEANCIER!$F12,0) -> 0 | F13: 10165.98 | I13: 15045 | K13: 0 | L13: 0 | M13: 0 | N13: 0 | O13: 0
A14: =$A$4+19 -> 2018-05-20 | B14: =ECHEANCIER!C13 -> Prel | C14: =ECHEANCIER!D13 -> ENGIE | D14: =ECHEANCIER!E13 -> Dep Div | E14: =IF($A14<=TODAY(),ECHEANCIER!$F13,0) -> 0 | F14: 10165.98 | I14: 15045 | K14: 0 | L14: 0 | M14: 0 | N14: 0 | O14: 0
A15: =$A$4+25 -> 2018-05-26 | B15: =ECHEANCIER!C14 -> Vir recu | C15: =ECHEANCIER!D14 -> MONDIALE | D15: =ECHEANCIER!E14 -> Retraite | E15: =IF(AND($A15<=TODAY(),$D15="retraite",OR($A$1="mars",$A$1="juin",$A$1="septembre",$A$1="decembre")),ECHEANCIER!$F14,0) -> 0 | F15: 10165.98 | I15: 15045 | K15: 0 | L15: 0 | M15: 0 | N15: 0 | O15: 0
A16: =$A$4+25 -> 2018-05-26 | B16: =ECHEANCIER!C15 -> Prel | C16: =ECHEANCIER!D15 -> C. OUEST | D16: =ECHEANCIER!E15 -> Dep Div | E16: =IF($A16<=TODAY(),ECHEANCIER!$F15,0) -> 0 | F16: 10165.98 | I16: 15045 | K16: 0 | L16: 0 | M16: 0 | N16: 0 | O16: 0
F17: 10165.98 | I17: 15045 | K17: 0 | L17: 0 | M17: 0 | N17: 0 | O17: 0
F18: 10165.98 | I18: 15045 | K18: 0 | L18: 0 | M18: 0 | N18: 0 | O18: 0
F19: 10165.98 | I19: 15045 | K19: 0 | L19: 0 | M19: 0 | N19: 0 | O19: 0
F20: 10165.98 | I20: 15045 | K20: 0 | L20: 0 | M20: 0 | N20: 0 | O20: 0
E21: =SUM(E5:E20) -> 1455.91 | H21: =SUM(H5:H20) -> 0 | K21: =SUM(K5:K20) -> 1455.91 | L21: =SUM(L5:L20) -> 0 | M21: =SUM(M5:M20) -> 0 | N21: =SUM(N5:N20) -> 0 | O21: =SUM(O5:O20) -> 0
F22: =F20 -> 10165.98 | I22: =I20 -> 15045 | K22: =(K21+K4) -> 8456.04 | L22: =(L21+L4) -> 45 | M22: =(M21+M4) -> 3075.9 | N22: =(N21+N4) -> -2865.96 | O22: =(O21+O4) -> 0
C24: CONTROLE | F24: =(F22)+(I22) -> 25210.98 | K24: =SUM(K21:O21) -> 1455.91 | M24: =(F4)+(I4)+(K24) -> 25210.98

Sheet JUIN
A1: =MID(CELL("filename",A1),FIND("]",CELL("filename",A1))+1,32) -> JUIN
A2: JOURS | B2: MODE | C2: TIERS | D2: CATEGORIE | E2: BANQUE POSTALE | G2: P | H2: LIVRET A | J2: P | K2: RECETTES | M2: C. PORT | N2: DEPENSES | O2: DIVERS
B3: PAIEMENT | E3: DEB./CRED. | F3: SOLDE | H3: DEB./CRED. | I3: SOLDE | K3: RETRAITE | L3: DIVERSES | N3: DIVERSES
A4: 2018-06-01 | B4: REPORT | F4: =MAI!F22 -> 10165.98 | H4: =JANVIER!H22 -> 0 | I4: =MAI!I22 -> 15045 | K4: =MAI!K22 -> 8456.04 | L4: =MAI!L22 -> 45 | M4: =MAI!M22 -> 3075.9 | N4: =MAI!N22 -> -2865.96 | O4: =MAI!O22 -> 0
A5: =$A$4 -> 2018-06-01 | B5: =ECHEANCIER!C4 -> Vir recu | C5: =ECHEANCIER!D4 -> ARCO-CIPC | D5: =ECHEANCIER!E4 -> Retraite | E5: =IF($A5<=TODAY(),ECHEANCIER!$F4,0) -> 0 | F5: =SUM(F4)+(E5) -> 10165.98 | I5: =SUM(I4)+(H5) -> 15045 | K5: =IF($D5="Retraite",($E5),0) -> 0 | L5: =IF($D5="rec div",($E5+H5),0) -> 0 | M5: =IF($D5="C Port",($E5),0) -> 0 | N5: =IF($D5="dep div",($E5),0) -> 0 | O5: =IF($D5="divers",($E5),0) -> 0
A6: =$A$4 -> 2018-06-01 | B6: =ECHEANCIER!C5 -> Vir recu | C6: =ECHEANCIER!D5 -> ARCO-CPM | D6: =ECHEANCIER!E5 -> Retraite | E6: =IF($A6<=TODAY(),ECHEANCIER!$F5,0) -> 0 | F6: =SUM(F5+E6) -> 10165.98 | I6: =SUM(I5)+(H6) -> 15045 | K6: 0 | L6: 0 | M6: 0 | N6: 0 | O6: 0
A7: =$A$4+4 -> 2018-06-05 | B7: =ECHEANCIER!C6 -> Prel | C7: =ECHEANCIER!D6 -> ST CHRIST | D7: =ECHEANCIER!E6 -> C Port | E7: =IF(AND($A7<=TODAY(),$D7="c port",OR($A$1="mars",$A$1="juin",$A$1="septembre",$A$1="decembre")),ECHEANCIER!$F6,0) -> 0 | F7: 10165.98 | I7: 15045 | K7: 0 | L7: 0 | M7: 0 | N7: 0 | O7: 0
A8: =$A$4+4 -> 2018-06-05 | B8: =ECHEANCIER!C7 -> Prel | C8: =ECHEANCIER!D7 -> UNEO | D8: =ECHEANCIER!E7 -> Dep Div | E8: =IF($A8<=TODAY(),ECHEANCIER!$F7,0) -> 0 | F8: 10165.98 | I8: 15045 | K8: 0 | L8: 0 | M8: 0 | N8: 0 | O8: 0
A9: =$A$4+9 -> 2018-06-10 | B9: =ECHEANCIER!C8 -> Prel | C9: =ECHEANCIER!D8 -> FREE | D9: =ECHEANCIER!E8 -> Dep Div | E9: =IF($A9<=TODAY(),ECHEANCIER!$F8,0) -> 0 | F9: 10165.98 | I9: =SUM(I8)+(H9) -> 15045 | K9: 0 | L9: 0 | M9: 0 | N9: 0 | O9: 0
A10: =$A$4+9 -> 2018-06-10 | B10: =ECHEANCIER!C9 -> Prel | C10: =ECHEANCIER!D9 -> ENF MEKONG | D10: =ECHEANCIER!E9 -> Dep Div | E10: =IF($A10<=TODAY(),ECHEANCIER!$F9,0) -> 0 | F10: 10165.98 | I10: 15045 | K10: 0 | L10: 0 | M10: 0 | N10: 0 | O10: 0
A11: =$A$4+9 -> 2018-06-10 | B11: =ECHEANCIER!C10 -> Prel | C11: =ECHEANCIER!D10 -> A.L.M. | D11: =ECHEANCIER!E10 -> Dep Div | E11: =IF($A11<=TODAY(),ECHEANCIER!$F10,0) -> 0 | F11: 10165.98 | I11: 15045 | K11: 0 | L11: 0 | M11: 0 | N11: 0 | O11: 0
A12: =$A$4+14 -> 2018-06-15 | B12: =ECHEANCIER!C11 -> Prel | C12: =ECHEANCIER!D11 -> T.P.ANG N | D12: =ECHEANCIER!E11 -> Dep Div | E12: =IF($A12<=TODAY(),ECHEANCIER!$F11,0) -> 0 | F12: 10165.98 | I12: 15045 | K12: 0 | L12: 0 | M12: 0 | N12: 0 | O12: 0
A13: =$A$4+16 -> 2018-06-17 | B13: =ECHEANCIER!C12 -> Vir recu | C13: =ECHEANCIER!D12 -> LUTZ | D13: =ECHEANCIER!E12 -> C Port | E13: =IF($A13<=TODAY(),ECHEANCIER!$F12,0) -> 0 | F13: 10165.98 | I13: 15045 | K13: 0 | L13: 0 | M13: 0 | N13: 0 | O13: 0
A14: =$A$4+19 -> 2018-06-20 | B14: =ECHEANCIER!C13 -> Prel | C14: =ECHEANCIER!D13 -> ENGIE | D14: =ECHEANCIER!E13 -> Dep Div | E14: =IF($A14<=TODAY(),ECHEANCIER!$F13,0) -> 0 | F14: 10165.98 | I14: 15045 | K14: 0 | L14: 0 | M14: 0 | N14: 0 | O14: 0
A15: =$A$4+25 -> 2018-06-26 | B15: =ECHEANCIER!C14 -> Vir recu | C15: =ECHEANCIER!D14 -> MONDIALE | D15: =ECHEANCIER!E14 -> Retraite | E15: =IF(AND($A15<=TODAY(),$D15="retraite",OR($A$1="mars",$A$1="juin",$A$1="septembre",$A$1="decembre")),ECHEANCIER!$F14,0) -> 0 | F15: 10165.98 | I15: 15045 | K15: 0 | L15: 0 | M15: 0 | N15: 0 | O15: 0
A16: =$A$4+25 -> 2018-06-26 | B16: =ECHEANCIER!C15 -> Prel | C16: =ECHEANCIER!D15 -> C. OUEST | D16: =ECHEANCIER!E15 -> Dep Div | E16: =IF($A16<=TODAY(),ECHEANCIER!$F15,0) -> 0 | F16: 10165.98 | I16: 15045 | K16: 0 | L16: 0 | M16: 0 | N16: 0 | O16: 0
F17: 10165.98 | I17: 15045 | K17: 0 | L17: 0 | M17: 0 | N17: 0 | O17: 0
F18: 10165.98 | I18: 15045 | K18: 0 | L18: 0 | M18: 0 | N18: 0 | O18: 0
F19: 10165.98 | I19: 15045 | K19: 0 | L19: 0 | M19: 0 | N19: 0 | O19: 0
F20: 10165.98 | I20: 15045 | K20: 0 | L20: 0 | M20: 0 | N20: 0 | O20: 0
E21: =SUM(E5:E20) -> 0 | H21: =SUM(H5:H20) -> 0 | K21: =SUM(K5:K20) -> 0 | L21: =SUM(L5:L20) -> 0 | M21: =SUM(M5:M20) -> 0 | N21: =SUM(N5:N20) -> 0 | O21: =SUM(O5:O20) -> 0
F22: =F20 -> 10165.98 | I22: =I20 -> 15045 | K22: =(K21+K4) -> 8456.04 | L22: =(L21+L4) -> 45 | M22: =(M21+M4) -> 3075.9 | N22: =(N21+N4) -> -2865.96 | O22: =(O21+O4) -> 0
C24: CONTROLE | F24: =(F22)+(I22) -> 25210.98 | K24: =SUM(K21:O21) -> 0 | M24: =(F4)+(I4)+(K24) -> 25210.98

Sheet JUILLET
A1: =MID(CELL("filename",A1),FIND("]",CELL("filename",A1))+1,32) -> JUILLET
A2: JOURS | B2: MODE | C2: TIERS | D2: CATEGORIE | E2: BANQUE POSTALE | G2: P | H2: LIVRET A | J2: P | K2: RECETTES | M2: C. PORT | N2: DEPENSES | O2: DIVERS
B3: PAIEMENT | E3: DEB./CRED. | F3: SOLDE | H3: DEB./CRED. | I3: SOLDE | K3: RETRAITE | L3: DIVERSES | N3: DIVERSES
A4: 2018-07-01 | B4: REPORT | F4: =JUIN!F22 -> 10165.98 | H4: =JANVIER!H22 -> 0 | I4: =JUIN!I22 -> 15045 | K4: =JUIN!K22 -> 8456.04 | L4: =JUIN!L22 -> 45 | M4: =JUIN!M22 -> 3075.9 | N4: =JUIN!N22 -> -2865.96 | O4: =JUIN!O22 -> 0
A5: =$A$4 -> 2018-07-01 | B5: =ECHEANCIER!C4 -> Vir recu | C5: =ECHEANCIER!D4 -> ARCO-CIPC | D5: =ECHEANCIER!E4 -> Retraite | E5: =IF($A5<=TODAY(),ECHEANCIER!$F4,0) -> 0 | F5: =SUM(F4)+(E5) -> 10165.98 | I5: =SUM(I4)+(H5) -> 15045 | K5: =IF($D5="Retraite",($E5),0) -> 0 | L5: =IF($D5="rec div",($E5+H5),0) -> 0 | M5: =IF($D5="C Port",($E5),0) -> 0 | N5: =IF($D5="dep div",($E5),0) -> 0 | O5: =IF($D5="divers",($E5),0) -> 0
A6: =$A$4 -> 2018-07-01 | B6: =ECHEANCIER!C5 -> Vir recu | C6: =ECHEANCIER!D5 -> ARCO-CPM | D6: =ECHEANCIER!E5 -> Retraite | E6: =IF($A6<=TODAY(),ECHEANCIER!$F5,0) -> 0 | F6: =SUM(F5+E6) -> 10165.98 | I6: =SUM(I5)+(H6) -> 15045 | K6: 0 | L6: 0 | M6: 0 | N6: 0 | O6: 0
A7: =$A$4+4 -> 2018-07-05 | B7: =ECHEANCIER!C6 -> Prel | C7: =ECHEANCIER!D6 -> ST CHRIST | D7: =ECHEANCIER!E6 -> C Port | E7: =IF(AND($A7<=TODAY(),$D7="c port",OR($A$1="mars",$A$1="juin",$A$1="septembre",$A$1="decembre")),ECHEANCIER!$F6,0) -> 0 | F7: 10165.98 | I7: 15045 | K7: 0 | L7: 0 | M7: 0 | N7: 0 | O7: 0
A8: =$A$4+4 -> 2018-07-05 | B8: =ECHEANCIER!C7 -> Prel | C8: =ECHEANCIER!D7 -> UNEO | D8: =ECHEANCIER!E7 -> Dep Div | E8: =IF($A8<=TODAY(),ECHEANCIER!$F7,0) -> 0 | F8: 10165.98 | I8: 15045 | K8: 0 | L8: 0 | M8: 0 | N8: 0 | O8: 0
A9: =$A$4+9 -> 2018-07-10 | B9: =ECHEANCIER!C8 -> Prel | C9: =ECHEANCIER!D8 -> FREE | D9: =ECHEANCIER!E8 -> Dep Div | E9: =IF($A9<=TODAY(),ECHEANCIER!$F8,0) -> 0 | F9: 10165.98 | I9: =SUM(I8)+(H9) -> 15045 | K9: 0 | L9: 0 | M9: 0 | N9: 0 | O9: 0
A10: =$A$4+9 -> 2018-07-10 | B10: =ECHEANCIER!C9 -> Prel | C10: =ECHEANCIER!D9 -> ENF MEKONG | D10: =ECHEANCIER!E9 -> Dep Div | E10: =IF($A10<=TODAY(),ECHEANCIER!$F9,0) -> 0 | F10: 10165.98 | I10: 15045 | K10: 0 | L10: 0 | M10: 0 | N10: 0 | O10: 0
A11: =$A$4+9 -> 2018-07-10 | B11: =ECHEANCIER!C10 -> Prel | C11: =ECHEANCIER!D10 -> A.L.M. | D11: =ECHEANCIER!E10 -> Dep Div | E11: =IF($A11<=TODAY(),ECHEANCIER!$F10,0) -> 0 | F11: 10165.98 | I11: 15045 | K11: 0 | L11: 0 | M11: 0 | N11: 0 | O11: 0
A12: =$A$4+14 -> 2018-07-15 | B12: =ECHEANCIER!C11 -> Prel | C12: =ECHEANCIER!D11 -> T.P.ANG N | D12: =ECHEANCIER!E11 -> Dep Div | E12: =IF($A12<=TODAY(),ECHEANCIER!$F11,0) -> 0 | F12: 10165.98 | I12: 15045 | K12: 0 | L12: 0 | M12: 0 | N12: 0 | O12: 0
A13: =$A$4+16 -> 2018-07-17 | B13: =ECHEANCIER!C12 -> Vir recu | C13: =ECHEANCIER!D12 -> LUTZ | D13: =ECHEANCIER!E12 -> C Port | E13: =IF($A13<=TODAY(),ECHEANCIER!$F12,0) -> 0 | F13: 10165.98 | I13: 15045 | K13: 0 | L13: 0 | M13: 0 | N13: 0 | O13: 0
A14: =$A$4+19 -> 2018-07-20 | B14: =ECHEANCIER!C13 -> Prel | C14: =ECHEANCIER!D13 -> ENGIE | D14: =ECHEANCIER!E13 -> Dep Div | E14: =IF($A14<=TODAY(),ECHEANCIER!$F13,0) -> 0 | F14: 10165.98 | I14: 15045 | K14: 0 | L14: 0 | M14: 0 | N14: 0 | O14: 0
A15: =$A$4+25 -> 2018-07-26 | B15: =ECHEANCIER!C14 -> Vir recu | C15: =ECHEANCIER!D14 -> MONDIALE | D15: =ECHEANCIER!E14 -> Retraite | E15: =IF(AND($A15<=TODAY(),$D15="retraite",OR($A$1="mars",$A$1="juin",$A$1="septembre",$A$1="decembre")),ECHEANCIER!$F14,0) -> 0 | F15: 10165.98 | I15: 15045 | K15: 0 | L15: 0 | M15: 0 | N15: 0 | O15: 0
A16: =$A$4+25 -> 2018-07-26 | B16: =ECHEANCIER!C15 -> Prel | C16: =ECHEANCIER!D15 -> C. OUEST | D16: =ECHEANCIER!E15 -> Dep Div | E16: =IF($A16<=TODAY(),ECHEANCIER!$F15,0) -> 0 | F16: 10165.98 | I16: 15045 | K16: 0 | L16: 0 | M16: 0 | N16: 0 | O16: 0
F17: 10165.98 | I17: 15045 | K17: 0 | L17: 0 | M17: 0 | N17: 0 | O17: 0
F18: 10165.98 | I18: 15045 | K18: 0 | L18: 0 | M18: 0 | N18: 0 | O18: 0
F19: 10165.98 | I19: 15045 | K19: 0 | L19: 0 | M19: 0 | N19: 0 | O19: 0
F20: 10165.98 | I20: 15045 | K20: 0 | L20: 0 | M20: 0 | N20: 0 | O20: 0
E21: =SUM(E5:E20) -> 0 | H21: =SUM(H5:H20) -> 0 | K21: =SUM(K5:K20) -> 0 | L21: =SUM(L5:L20) -> 0 | M21: =SUM(M5:M20) -> 0 | N21: =SUM(N5:N20) -> 0 | O21: =SUM(O5:O20) -> 0
F22: =F20 -> 10165.98 | I22: =I20 -> 15045 | K22: =(K21+K4) -> 8456.04 | L22: =(L21+L4) -> 45 | M22: =(M21+M4) -> 3075.9 | N22: =(N21+N4) -> -2865.96 | O22: =(O21+O4) -> 0
C24: CONTROLE | F24: =(F22)+(I22) -> 25210.98 | K24: =SUM(K21:O21) -> 0 | M24: =(F4)+(I4)+(K24) -> 25210.98

Sheet AOUT
A1: =MID(CELL("filename",A1),FIND("]",CELL("filename",A1))+1,32) -> AOUT
A2: JOURS | B2: MODE | C2: TIERS | D2: CATEGORIE | E2: BANQUE POSTALE | G2: P | H2: LIVRET A | J2: P | K2: RECETTES | M2: C. PORT | N2: DEPENSES | O2: DIVERS
B3: PAIEMENT | E3: DEB./CRED. | F3: SOLDE | H3: DEB./CRED. | I3: SOLDE | K3: RETRAITE | L3: DIVERSES | N3: DIVERSES
A4: 2018-08-01 | B4: REPORT | F4: =JUILLET!F22 -> 10165.98 | H4: =JANVIER!H22 -> 0 | I4: =JUILLET!I22 -> 15045 | K4: =JUILLET!K22 -> 8456.04 | L4: =JUILLET!L22 -> 45 | M4: =JUILLET!M22 -> 3075.9 | N4: =JUILLET!N22 -> -2865.96 | O4: =JUILLET!O22 -> 0
A5: =$A$4 -> 2018-08-01 | B5: =ECHEANCIER!C4 -> Vir recu | C5: =ECHEANCIER!D4 -> ARCO-CIPC | D5: =ECHEANCIER!E4 -> Retraite | E5: =IF($A5<=TODAY(),ECHEANCIER!$F4,0) -> 0 | F5: =SUM(F4)+(E5) -> 10165.98 | I5: =SUM(I4)+(H5) -> 15045 | K5: =IF($D5="Retraite",($E5),0) -> 0 | L5: =IF($D5="rec div",($E5+H5),0) -> 0 | M5: =IF($D5="C Port",($E5),0) -> 0 | N5: =IF($D5="dep div",($E5),0) -> 0 | O5: =IF($D5="divers",($E5),0) -> 0
A6: =$A$4 -> 2018-08-01 | B6: =ECHEANCIER!C5 -> Vir recu | C6: =ECHEANCIER!D5 -> ARCO-CPM | D6: =ECHEANCIER!E5 -> Retraite | E6: =IF($A6<=TODAY(),ECHEANCIER!$F5,0) -> 0 | F6: =SUM(F5+E6) -> 10165.98 | I6: =SUM(I5)+(H6) -> 15045 | K6: 0 | L6: 0 | M6: 0 | N6: 0 | O6: 0
A7: =$A$4+4 -> 2018-08-05 | B7: =ECHEANCIER!C6 -> Prel | C7: =ECHEANCIER!D6 -> ST CHRIST | D7: =ECHEANCIER!E6 -> C Port | E7: =IF(AND($A7<=TODAY(),$D7="c port",OR($A$1="mars",$A$1="juin",$A$1="septembre",$A$1="decembre")),ECHEANCIER!$F6,0) -> 0 | F7: 10165.98 | I7: 15045 | K7: 0 | L7: 0 | M7: 0 | N7: 0 | O7: 0
A8: =$A$4+4 -> 2018-08-05 | B8: =ECHEANCIER!C7 -> Prel | C8: =ECHEANCIER!D7 -> UNEO | D8: =ECHEANCIER!E7 -> Dep Div | E8: =IF($A8<=TODAY(),ECHEANCIER!$F7,0) -> 0 | F8: 10165.98 | I8: 15045 | K8: 0 | L8: 0 | M8: 0 | N8: 0 | O8: 0
A9: =$A$4+9 -> 2018-08-10 | B9: =ECHEANCIER!C8 -> Prel | C9: =ECHEANCIER!D8 -> FREE | D9: =ECHEANCIER!E8 -> Dep Div | E9: =IF($A9<=TODAY(),ECHEANCIER!$F8,0) -> 0 | F9: 10165.98 | I9: =SUM(I8)+(H9) -> 15045 | K9: 0 | L9: 0 | M9: 0 | N9: 0 | O9: 0
A10: =$A$4+9 -> 2018-08-10 | B10: =ECHEANCIER!C9 -> Prel | C10: =ECHEANCIER!D9 -> ENF MEKONG | D10: =ECHEANCIER!E9 -> Dep Div | E10: =IF($A10<=TODAY(),ECHEANCIER!$F9,0) -> 0 | F10: 10165.98 | I10: 15045 | K10: 0 | L10: 0 | M10: 0 | N10: 0 | O10: 0
A11: =$A$4+9 -> 2018-08-10 | B11: =ECHEANCIER!C10 -> Prel | C11: =ECHEANCIER!D10 -> A.L.M. | D11: =ECHEANCIER!E10 -> Dep Div | E11: =IF($A11<=TODAY(),ECHEANCIER!$F10,0) -> 0 | F11: 10165.98 | I11: 15045 | K11: 0 | L11: 0 | M11: 0 | N11: 0 | O11: 0
A12: =$A$4+14 -> 2018-08-15 | B12: =ECHEANCIER!C11 -> Prel | C12: =ECHEANCIER!D11 -> T.P.ANG N | D12: =ECHEANCIER!E11 -> Dep Div | E12: =IF($A12<=TODAY(),ECHEANCIER!$F11,0) -> 0 | F12: 10165.98 | I12: 15045 | K12: 0 | L12: 0 | M12: 0 | N12: 0 | O12: 0
A13: =$A$4+16 -> 2018-08-17 | B13: =ECHEANCIER!C12 -> Vir recu | C13: =ECHEANCIER!D12 -> LUTZ | D13: =ECHEANCIER!E12 -> C Port | E13: =IF($A13<=TODAY(),ECHEANCIER!$F12,0) -> 0 | F13: 10165.98 | I13: 15045 | K13: 0 | L13: 0 | M13: 0 | N13: 0 | O13: 0
A14: =$A$4+19 -> 2018-08-20 | B14: =ECHEANCIER!C13 -> Prel | C14: =ECHEANCIER!D13 -> ENGIE | D14: =ECHEANCIER!E13 -> Dep Div | E14: =IF($A14<=TODAY(),ECHEANCIER!$F13,0) -> 0 | F14: 10165.98 | I14: 15045 | K14: 0 | L14: 0 | M14: 0 | N14: 0 | O14: 0
A15: =$A$4+25 -> 2018-08-26 | B15: =ECHEANCIER!C14 -> Vir recu | C15: =ECHEANCIER!D14 -> MONDIALE | D15: =ECHEANCIER!E14 -> Retraite | E15: =IF(AND($A15<=TODAY(),$D15="retraite",OR($A$1="mars",$A$1="juin",$A$1="septembre",$A$1="decembre")),ECHEANCIER!$F14,0) -> 0 | F15: 10165.98 | I15: 15045 | K15: 0 | L15: 0 | M15: 0 | N15: 0 | O15: 0
A16: =$A$4+25 -> 2018-08-26 | B16: =ECHEANCIER!C15 -> Prel | C16: =ECHEANCIER!D15 -> C. OUEST | D16: =ECHEANCIER!E15 -> Dep Div | E16: =IF($A16<=TODAY(),ECHEANCIER!$F15,0) -> 0 | F16: 10165.98 | I16: 15045 | K16: 0 | L16: 0 | M16: 0 | N16: 0 | O16: 0
F17: 10165.98 | I17: 15045 | K17: 0 | L17: 0 | M17: 0 | N17: 0 | O17: 0
F18: 10165.98 | I18: 15045 | K18: 0 | L18: 0 | M18: 0 | N18: 0 | O18: 0
F19: 10165.98 | I19: 15045 | K19: 0 | L19: 0 | M19: 0 | N19: 0 | O19: 0
F20: 10165.98 | I20: 15045 | K20: 0 | L20: 0 | M20: 0 | N20: 0 | O20: 0
E21: =SUM(E5:E20) -> 0 | H21: =SUM(H5:H20) -> 0 | K21: =SUM(K5:K20) -> 0 | L21: =SUM(L5:L20) -> 0 | M21: =SUM(M5:M20) -> 0 | N21: =SUM(N5:N20) -> 0 | O21: =SUM(O5:O20) -> 0
F22: =F20 -> 10165.98 | I22: =I20 -> 15045 | K22: =(K21+K4) -> 8456.04 | L22: =(L21+L4) -> 45 | M22: =(M21+M4) -> 3075.9 | N22: =(N21+N4) -> -2865.96 | O22: =(O21+O4) -> 0
C24: CONTROLE | F24: =(F22)+(I22) -> 25210.98 | K24: =SUM(K21:O21) -> 0 | M24: =(F4)+(I4)+(K24) -> 25210.98

Sheet SEPTEMBRE
A1: =MID(CELL("filename",A1),FIND("]",CELL("filename",A1))+1,32) -> SEPTEMBRE
A2: JOURS | B2: MODE | C2: TIERS | D2: CATEGORIE | E2: BANQUE POSTALE | G2: P | H2: LIVRET A | J2: P | K2: RECETTES | M2: C. PORT | N2: DEPENSES | O2: DIVERS
B3: PAIEMENT | E3: DEB./CRED. | F3: SOLDE | H3: DEB./CRED. | I3: SOLDE | K3: RETRAITE | L3: DIVERSES | N3: DIVERSES
A4: 2018-09-01 | B4: REPORT | F4: =AOUT!F22 -> 10165.98 | H4: =JANVIER!H22 -> 0 | I4: =AOUT!I22 -> 15045 | K4: =AOUT!K22 -> 8456.04 | L4: =AOUT!L22 -> 45 | M4: =AOUT!M22 -> 3075.9 | N4: =AOUT!N22 -> -2865.96 | O4: =AOUT!O22 -> 0
A5: =$A$4 -> 2018-09-01 | B5: =ECHEANCIER!C4 -> Vir recu | C5: =ECHEANCIER!D4 -> ARCO-CIPC | D5: =ECHEANCIER!E4 -> Retraite | E5: =IF($A5<=TODAY(),ECHEANCIER!$F4,0) -> 0 | F5: =SUM(F4)+(E5) -> 10165.98 | I5: =SUM(I4)+(H5) -> 15045 | K5: =IF($D5="Retraite",($E5),0) -> 0 | L5: =IF($D5="rec div",($E5+H5),0) -> 0 | M5: =IF($D5="C Port",($E5),0) -> 0 | N5: =IF($D5="dep div",($E5),0) -> 0 | O5: =IF($D5="divers",($E5),0) -> 0
A6: =$A$4 -> 2018-09-01 | B6: =ECHEANCIER!C5 -> Vir recu | C6: =ECHEANCIER!D5 -> ARCO-CPM | D6: =ECHEANCIER!E5 -> Retraite | E6: =IF($A6<=TODAY(),ECHEANCIER!$F5,0) -> 0 | F6: =SUM(F5+E6) -> 10165.98 | I6: =SUM(I5)+(H6) -> 15045 | K6: 0 | L6: 0 | M6: 0 | N6: 0 | O6: 0
A7: =$A$4+4 -> 2018-09-05 | B7: =ECHEANCIER!C6 -> Prel | C7: =ECHEANCIER!D6 -> ST CHRIST | D7: =ECHEANCIER!E6 -> C Port | E7: =IF(AND($A7<=TODAY(),$D7="c port",OR($A$1="mars",$A$1="juin",$A$1="septembre",$A$1="decembre")),ECHEANCIER!$F6,0) -> 0 | F7: 10165.98 | I7: 15045 | K7: 0 | L7: 0 | M7: 0 | N7: 0 | O7: 0
A8: =$A$4+4 -> 2018-09-05 | B8: =ECHEANCIER!C7 -> Prel | C8: =ECHEANCIER!D7 -> UNEO | D8: =ECHEANCIER!E7 -> Dep Div | E8: =IF($A8<=TODAY(),ECHEANCIER!$F7,0) -> 0 | F8: 10165.98 | I8: 15045 | K8: 0 | L8: 0 | M8: 0 | N8: 0 | O8: 0
A9: =$A$4+9 -> 2018-09-10 | B9: =ECHEANCIER!C8 -> Prel | C9: =ECHEANCIER!D8 -> FREE | D9: =ECHEANCIER!E8 -> Dep Div | E9: =IF($A9<=TODAY(),ECHEANCIER!$F8,0) -> 0 | F9: 10165.98 | I9: =SUM(I8)+(H9) -> 15045 | K9: 0 | L9: 0 | M9: 0 | N9: 0 | O9: 0
A10: =$A$4+9 -> 2018-09-10 | B10: =ECHEANCIER!C9 -> Prel | C10: =ECHEANCIER!D9 -> ENF MEKONG | D10: =ECHEANCIER!E9 -> Dep Div | E10: =IF($A10<=TODAY(),ECHEANCIER!$F9,0) -> 0 | F10: 10165.98 | I10: 15045 | K10: 0 | L10: 0 | M10: 0 | N10: 0 | O10: 0
A11: =$A$4+9 -> 2018-09-10 | B11: =ECHEANCIER!C10 -> Prel | C11: =ECHEANCIER!D10 -> A.L.M. | D11: =ECHEANCIER!E10 -> Dep Div | E11: =IF($A11<=TODAY(),ECHEANCIER!$F10,0) -> 0 | F11: 10165.98 | I11: 15045 | K11: 0 | L11: 0 | M11: 0 | N11: 0 | O11: 0
A12: =$A$4+14 -> 2018-09-15 | B12: =ECHEANCIER!C11 -> Prel | C12: =ECHEANCIER!D11 -> T.P.ANG N | D12: =ECHEANCIER!E11 -> Dep Div | E12: =IF($A12<=TODAY(),ECHEANCIER!$F11,0) -> 0 | F12: 10165.98 | I12: 15045 | K12: 0 | L12: 0 | M12: 0 | N12: 0 | O12: 0
A13: =$A$4+16 -> 2018-09-17 | B13: =ECHEANCIER!C12 -> Vir recu | C13: =ECHEANCIER!D12 -> LUTZ | D13: =ECHEANCIER!E12 -> C Port | E13: =IF($A13<=TODAY(),ECHEANCIER!$F12,0) -> 0 | F13: 10165.98 | I13: 15045 | K13: 0 | L13: 0 | M13: 0 | N13: 0 | O13: 0
A14: =$A$4+19 -> 2018-09-20 | B14: =ECHEANCIER!C13 -> Prel | C14: =ECHEANCIER!D13 -> ENGIE | D14: =ECHEANCIER!E13 -> Dep Div | E14: =IF($A14<=TODAY(),ECHEANCIER!$F13,0) -> 0 | F14: 10165.98 | I14: 15045 | K14: 0 | L14: 0 | M14: 0 | N14: 0 | O14: 0
A15: =$A$4+25 -> 2018-09-26 | B15: =ECHEANCIER!C14 -> Vir recu | C15: =ECHEANCIER!D14 -> MONDIALE | D15: =ECHEANCIER!E14 -> Retraite | E15: =IF(AND($A15<=TODAY(),$D15="retraite",OR($A$1="mars",$A$1="juin",$A$1="septembre",$A$1="decembre")),ECHEANCIER!$F14,0) -> 0 | F15: 10165.98 | I15: 15045 | K15: 0 | L15: 0 | M15: 0 | N15: 0 | O15: 0
A16: =$A$4+25 -> 2018-09-26 | B16: =ECHEANCIER!C15 -> Prel | C16: =ECHEANCIER!D15 -> C. OUEST | D16: =ECHEANCIER!E15 -> Dep Div | E16: =IF($A16<=TODAY(),ECHEANCIER!$F15,0) -> 0 | F16: 10165.98 | I16: 15045 | K16: 0 | L16: 0 | M16: 0 | N16: 0 | O16: 0
F17: 10165.98 | I17: 15045 | K17: 0 | L17: 0 | M17: 0 | N17: 0 | O17: 0
F18: 10165.98 | I18: 15045 | K18: 0 | L18: 0 | M18: 0 | N18: 0 | O18: 0
F19: 10165.98 | I19: 15045 | K19: 0 | L19: 0 | M19: 0 | N19: 0 | O19: 0
F20: 10165.98 | I20: 15045 | K20: 0 | L20: 0 | M20: 0 | N20: 0 | O20: 0
E21: =SUM(E5:E20) -> 0 | H21: =SUM(H5:H20) -> 0 | K21: =SUM(K5:K20) -> 0 | L21: =SUM(L5:L20) -> 0 | M21: =SUM(M5:M20) -> 0 | N21: =SUM(N5:N20) -> 0 | O21: =SUM(O5:O20) -> 0
F22: =F20 -> 10165.98 | I22: =I20 -> 15045 | K22: =(K21+K4) -> 8456.04 | L22: =(L21+L4) -> 45 | M22: =(M21+M4) -> 3075.9 | N22: =(N21+N4) -> -2865.96 | O22: =(O21+O4) -> 0
C24: CONTROLE | F24: =(F22)+(I22) -> 25210.98 | K24: =SUM(K21:O21) -> 0 | M24: =(F4)+(I4)+(K24) -> 25210.98

Sheet OCTOBRE
A1: =MID(CELL("filename",A1),FIND("]",CELL("filename",A1))+1,32) -> OCTOBRE
A2: JOURS | B2: MODE | C2: TIERS | D2: CATEGORIE | E2: BANQUE POSTALE | G2: P | H2: LIVRET A | J2: P | K2: RECETTES | M2: C. PORT | N2: DEPENSES | O2: DIVERS
B3: PAIEMENT | E3: DEB./CRED. | F3: SOLDE | H3: DEB./CRED. | I3: SOLDE | K3: RETRAITE | L3: DIVERSES | N3: DIVERSES
A4: 2018-10-01 | B4: REPORT | F4: =SEPTEMBRE!F22 -> 10165.98 | H4: =JANVIER!H22 -> 0 | I4: =SEPTEMBRE!I22 -> 15045 | K4: =SEPTEMBRE!K22 -> 8456.04 | L4: =SEPTEMBRE!L22 -> 45 | M4: =SEPTEMBRE!M22 -> 3075.9 | N4: =SEPTEMBRE!N22 -> -2865.96 | O4: =SEPTEMBRE!O22 -> 0
A5: =$A$4 -> 2018-10-01 | B5: =ECHEANCIER!C4 -> Vir recu | C5: =ECHEANCIER!D4 -> ARCO-CIPC | D5: =ECHEANCIER!E4 -> Retraite | E5: =IF($A5<=TODAY(),ECHEANCIER!$F4,0) -> 0 | F5: =SUM(F4)+(E5) -> 10165.98 | I5: =SUM(I4)+(H5) -> 15045 | K5: =IF($D5="Retraite",($E5),0) -> 0 | L5: =IF($D5="rec div",($E5+H5),0) -> 0 | M5: =IF($D5="C Port",($E5),0) -> 0 | N5: =IF($D5="dep div",($E5),0) -> 0 | O5: =IF($D5="divers",($E5),0) -> 0
A6: =$A$4 -> 2018-10-01 | B6: =ECHEANCIER!C5 -> Vir recu | C6: =ECHEANCIER!D5 -> ARCO-CPM | D6: =ECHEANCIER!E5 -> Retraite | E6: =IF($A6<=TODAY(),ECHEANCIER!$F5,0) -> 0 | F6: =SUM(F5+E6) -> 10165.98 | I6: =SUM(I5)+(H6) -> 15045 | K6: 0 | L6: 0 | M6: 0 | N6: 0 | O6: 0
A7: =$A$4+4 -> 2018-10-05 | B7: =ECHEANCIER!C6 -> Prel | C7: =ECHEANCIER!D6 -> ST CHRIST | D7: =ECHEANCIER!E6 -> C Port | E7: =IF(AND($A7<=TODAY(),$D7="c port",OR($A$1="mars",$A$1="juin",$A$1="septembre",$A$1="decembre")),ECHEANCIER!$F6,0) -> 0 | F7: 10165.98 | I7: 15045 | K7: 0 | L7: 0 | M7: 0 | N7: 0 | O7: 0
A8: =$A$4+4 -> 2018-10-05 | B8: =ECHEANCIER!C7 -> Prel | C8: =ECHEANCIER!D7 -> UNEO | D8: =ECHEANCIER!E7 -> Dep Div | E8: =IF($A8<=TODAY(),ECHEANCIER!$F7,0) -> 0 | F8: 10165.98 | I8: 15045 | K8: 0 | L8: 0 | M8: 0 | N8: 0 | O8: 0
A9: =$A$4+9 -> 2018-10-10 | B9: =ECHEANCIER!C8 -> Prel | C9: =ECHEANCIER!D8 -> FREE | D9: =ECHEANCIER!E8 -> Dep Div | E9: =IF($A9<=TODAY(),ECHEANCIER!$F8,0) -> 0 | F9: 10165.98 | I9: =SUM(I8)+(H9) -> 15045 | K9: 0 | L9: 0 | M9: 0 | N9: 0 | O9: 0
A10: =$A$4+9 -> 2018-10-10 | B10: =ECHEANCIER!C9 -> Prel | C10: =ECHEANCIER!D9 -> ENF MEKONG | D10: =ECHEANCIER!E9 -> Dep Div | E10: =IF($A10<=TODAY(),ECHEANCIER!$F9,0) -> 0 | F10: 10165.98 | I10: 15045 | K10: 0 | L10: 0 | M10: 0 | N10: 0 | O10: 0
A11: =$A$4+9 -> 2018-10-10 | B11: =ECHEANCIER!C10 -> Prel | C11: =ECHEANCIER!D10 -> A.L.M. | D11: =ECHEANCIER!E10 -> Dep Div | E11: =IF($A11<=TODAY(),ECHEANCIER!$F10,0) -> 0 | F11: 10165.98 | I11: 15045 | K11: 0 | L11: 0 | M11: 0 | N11: 0 | O11: 0
A12: =$A$4+14 -> 2018-10-15 | B12: =ECHEANCIER!C11 -> Prel | C12: =ECHEANCIER!D11 -> T.P.ANG N | D12: =ECHEANCIER!E11 -> Dep Div | E12: =IF($A12<=TODAY(),ECHEANCIER!$F11,0) -> 0 | F12: 10165.98 | I12: 15045 | K12: 0 | L12: 0 | M12: 0 | N12: 0 | O12: 0
A13: =$A$4+16 -> 2018-10-17 | B13: =ECHEANCIER!C12 -> Vir recu | C13: =ECHEANCIER!D12 -> LUTZ | D13: =ECHEANCIER!E12 -> C Port | E13: =IF($A13<=TODAY(),ECHEANCIER!$F12,0) -> 0 | F13: 10165.98 | I13: 15045 | K13: 0 | L13: 0 | M13: 0 | N13: 0 | O13: 0
A14: =$A$4+19 -> 2018-10-20 | B14: =ECHEANCIER!C13 -> Prel | C14: =ECHEANCIER!D13 -> ENGIE | D14: =ECHEANCIER!E13 -> Dep Div | E14: =IF($A14<=TODAY(),ECHEANCIER!$F13,0) -> 0 | F14: 10165.98 | I14: 15045 | K14: 0 | L14: 0 | M14: 0 | N14: 0 | O14: 0
A15: =$A$4+25 -> 2018-10-26 | B15: =ECHEANCIER!C14 -> Vir recu | C15: =ECHEANCIER!D14 -> MONDIALE | D15: =ECHEANCIER!E14 -> Retraite | E15: =IF(AND($A15<=TODAY(),$D15="retraite",OR($A$1="mars",$A$1="juin",$A$1="septembre",$A$1="decembre")),ECHEANCIER!$F14,0) -> 0 | F15: 10165.98 | I15: 15045 | K15: 0 | L15: 0 | M15: 0 | N15: 0 | O15: 0
A16: =$A$4+25 -> 2018-10-26 | B16: =ECHEANCIER!C15 -> Prel | C16: =ECHEANCIER!D15 -> C. OUEST | D16: =ECHEANCIER!E15 -> Dep Div | E16: =IF($A16<=TODAY(),ECHEANCIER!$F15,0) -> 0 | F16: 10165.98 | I16: 15045 | K16: 0 | L16: 0 | M16: 0 | N16: 0 | O16: 0
F17: 10165.98 | I17: 15045 | K17: 0 | L17: 0 | M17: 0 | N17: 0 | O17: 0
F18: 10165.98 | I18: 15045 | K18: 0 | L18: 0 | M18: 0 | N18: 0 | O18: 0
F19: 10165.98 | I19: 15045 | K19: 0 | L19: 0 | M19: 0 | N19: 0 | O19: 0
F20: 10165.98 | I20: 15045 | K20: 0 | L20: 0 | M20: 0 | N20: 0 | O20: 0
E21: =SUM(E5:E20) -> 0 | H21: =SUM(H5:H20) -> 0 | K21: =SUM(K5:K20) -> 0 | L21: =SUM(L5:L20) -> 0 | M21: =SUM(M5:M20) -> 0 | N21: =SUM(N5:N20) -> 0 | O21: =SUM(O5:O20) -> 0
F22: =F20 -> 10165.98 | I22: =I20 -> 15045 | K22: =(K21+K4) -> 8456.04 | L22: =(L21+L4) -> 45 | M22: =(M21+M4) -> 3075.9 | N22: =(N21+N4) -> -2865.96 | O22: =(O21+O4) -> 0
C24: CONTROLE | F24: =(F22)+(I22) -> 25210.98 | K24: =SUM(K21:O21) -> 0 | M24: =(F4)+(I4)+(K24) -> 25210.98

Sheet NOVEMBRE
A1: =MID(CELL("filename",A1),FIND("]",CELL("filename",A1))+1,32) -> NOVEMBRE
A2: JOURS | B2: MODE | C2: TIERS | D2: CATEGORIE | E2: BANQUE POSTALE | G2: P | H2: LIVRET A | J2: P | K2: RECETTES | M2: C. PORT | N2: DEPENSES | O2: DIVERS
B3: PAIEMENT | E3: DEB./CRED. | F3: SOLDE | H3: DEB./CRED. | I3: SOLDE | K3: RETRAITE | L3: DIVERSES | N3: DIVERSES
A4: 2018-11-01 | B4: REPORT | F4: =OCTOBRE!F22 -> 10165.98 | H4: =JANVIER!H22 -> 0 | I4: =OCTOBRE!I22 -> 15045 | K4: =OCTOBRE!K22 -> 8456.04 | L4: =OCTOBRE!L22 -> 45 | M4: =OCTOBRE!M22 -> 3075.9 | N4: =OCTOBRE!N22 -> -2865.96 | O4: =OCTOBRE!O22 -> 0
A5: =$A$4 -> 2018-11-01 | B5: =ECHEANCIER!C4 -> Vir recu | C5: =ECHEANCIER!D4 -> ARCO-CIPC | D5: =ECHEANCIER!E4 -> Retraite | E5: =IF($A5<=TODAY(),ECHEANCIER!$F4,0) -> 0 | F5: =SUM(F4)+(E5) -> 10165.98 | I5: =SUM(I4)+(H5) -> 15045 | K5: =IF($D5="Retraite",($E5),0) -> 0 | L5: =IF($D5="rec div",($E5+H5),0) -> 0 | M5: =IF($D5="C Port",($E5),0) -> 0 | N5: =IF($D5="dep div",($E5),0) -> 0 | O5: =IF($D5="divers",($E5),0) -> 0
A6: =$A$4 -> 2018-11-01 | B6: =ECHEANCIER!C5 -> Vir recu | C6: =ECHEANCIER!D5 -> ARCO-CPM | D6: =ECHEANCIER!E5 -> Retraite | E6: =IF($A6<=TODAY(),ECHEANCIER!$F5,0) -> 0 | F6: =SUM(F5+E6) -> 10165.98 | I6: =SUM(I5)+(H6) -> 15045 | K6: 0 | L6: 0 | M6: 0 | N6: 0 | O6: 0
A7: =$A$4+4 -> 2018-11-05 | B7: =ECHEANCIER!C6 -> Prel | C7: =ECHEANCIER!D6 -> ST CHRIST | D7: =ECHEANCIER!E6 -> C Port | E7: =IF(AND($A7<=TODAY(),$D7="c port",OR($A$1="mars",$A$1="juin",$A$1="septembre",$A$1="decembre")),ECHEANCIER!$F6,0) -> 0 | F7: 10165.98 | I7: 15045 | K7: 0 | L7: 0 | M7: 0 | N7: 0 | O7: 0
A8: =$A$4+4 -> 2018-11-05 | B8: =ECHEANCIER!C7 -> Prel | C8: =ECHEANCIER!D7 -> UNEO | D8: =ECHEANCIER!E7 -> Dep Div | E8: =IF($A8<=TODAY(),ECHEANCIER!$F7,0) -> 0 | F8: 10165.98 | I8: 15045 | K8: 0 | L8: 0 | M8: 0 | N8: 0 | O8: 0
A9: =$A$4+9 -> 2018-11-10 | B9: =ECHEANCIER!C8 -> Prel | C9: =ECHEANCIER!D8 -> FREE | D9: =ECHEANCIER!E8 -> Dep Div | E9: =IF($A9<=TODAY(),ECHEANCIER!$F8,0) -> 0 | F9: 10165.98 | I9: =SUM(I8)+(H9) -> 15045 | K9: 0 | L9: 0 | M9: 0 | N9: 0 | O9: 0
A10: =$A$4+9 -> 2018-11-10 | B10: =ECHEANCIER!C9 -> Prel | C10: =ECHEANCIER!D9 -> ENF MEKONG | D10: =ECHEANCIER!E9 -> Dep Div | E10: =IF($A10<=TODAY(),ECHEANCIER!$F9,0) -> 0 | F10: 10165.98 | I10: 15045 | K10: 0 | L10: 0 | M10: 0 | N10: 0 | O10: 0
A11: =$A$4+9 -> 2018-11-10 | B11: =ECHEANCIER!C10 -> Prel | C11: =ECHEANCIER!D10 -> A.L.M. | D11: =ECHEANCIER!E10 -> Dep Div | E11: =IF($A11<=TODAY(),ECHEANCIER!$F10,0) -> 0 | F11: 10165.98 | I11: 15045 | K11: 0 | L11: 0 | M11: 0 | N11: 0 | O11: 0
A12: =$A$4+14 -> 2018-11-15 | B12: =ECHEANCIER!C11 -> Prel | C12: =ECHEANCIER!D11 -> T.P.ANG N | D12: =ECHEANCIER!E11 -> Dep Div | E12: =IF($A12<=TODAY(),ECHEANCIER!$F11,0) -> 0 | F12: 10165.98 | I12: 15045 | K12: 0 | L12: 0 | M12: 0 | N12: 0 | O12: 0
A13: =$A$4+16 -> 2018-11-17 | B13: =ECHEANCIER!C12 -> Vir recu | C13: =ECHEANCIER!D12 -> LUTZ | D13: =ECHEANCIER!E12 -> C Port | E13: =IF($A13<=TODAY(),ECHEANCIER!$F12,0) -> 0 | F13: 10165.98 | I13: 15045 | K13: 0 | L13: 0 | M13: 0 | N13: 0 | O13: 0
A14: =$A$4+19 -> 2018-11-20 | B14: =ECHEANCIER!C13 -> Prel | C14: =ECHEANCIER!D13 -> ENGIE | D14: =ECHEANCIER!E13 -> Dep Div | E14: =IF($A14<=TODAY(),ECHEANCIER!$F13,0) -> 0 | F14: 10165.98 | I14: 15045 | K14: 0 | L14: 0 | M14: 0 | N14: 0 | O14: 0
A15: =$A$4+25 -> 2018-11-26 | B15: =ECHEANCIER!C14 -> Vir recu | C15: =ECHEANCIER!D14 -> MONDIALE | D15: =ECHEANCIER!E14 -> Retraite | E15: =IF(AND($A15<=TODAY(),$D15="retraite",OR($A$1="mars",$A$1="juin",$A$1="septembre",$A$1="decembre")),ECHEANCIER!$F14,0) -> 0 | F15: 10165.98 | I15: 15045 | K15: 0 | L15: 0 | M15: 0 | N15: 0 | O15: 0
A16: =$A$4+25 -> 2018-11-26 | B16: =ECHEANCIER!C15 -> Prel | C16: =ECHEANCIER!D15 -> C. OUEST | D16: =ECHEANCIER!E15 -> Dep Div | E16: =IF($A16<=TODAY(),ECHEANCIER!$F15,0) -> 0 | F16: 10165.98 | I16: 15045 | K16: 0 | L16: 0 | M16: 0 | N16: 0 | O16: 0
F17: 10165.98 | I17: 15045 | K17: 0 | L17: 0 | M17: 0 | N17: 0 | O17: 0
F18: 10165.98 | I18: 15045 | K18: 0 | L18: 0 | M18: 0 | N18: 0 | O18: 0
F19: 10165.98 | I19: 15045 | K19: 0 | L19: 0 | M19: 0 | N19: 0 | O19: 0
F20: 10165.98 | I20: 15045 | K20: 0 | L20: 0 | M20: 0 | N20: 0 | O20: 0
E21: =SUM(E5:E20) -> 0 | H21: =SUM(H5:H20) -> 0 | K21: =SUM(K5:K20) -> 0 | L21: =SUM(L5:L20) -> 0 | M21: =SUM(M5:M20) -> 0 | N21: =SUM(N5:N20) -> 0 | O21: =SUM(O5:O20) -> 0
F22: =F20 -> 10165.98 | I22: =I20 -> 15045 | K22: =(K21+K4) -> 8456.04 | L22: =(L21+L4) -> 45 | M22: =(M21+M4) -> 3075.9 | N22: =(N21+N4) -> -2865.96 | O22: =(O21+O4) -> 0
C24: CONTROLE | F24: =(F22)+(I22) -> 25210.98 | K24: =SUM(K21:O21) -> 0 | M24: =(F4)+(I4)+(K24) -> 25210.98

Sheet DECEMBRE
A1: =MID(CELL("filename",A1),FIND("]",CELL("filename",A1))+1,32) -> DECEMBRE
A2: JOURS | B2: MODE | C2: TIERS | D2: CATEGORIE | E2: BANQUE POSTALE | G2: P | H2: LIVRET A | J2: P | K2: RECETTES | M2: C. PORT | N2: DEPENSES | O2: DIVERS
B3: PAIEMENT | E3: DEB./CRED. | F3: SOLDE | H3: DEB./CRED. | I3: SOLDE | K3: RETRAITE | L3: DIVERSES | N3: DIVERSES
A4: 2018-12-01 | B4: REPORT | F4: =NOVEMBRE!F22 -> 10165.98 | I4: =NOVEMBRE!I22 -> 15045 | K4: =NOVEMBRE!K22 -> 8456.04 | L4: =NOVEMBRE!L22 -> 45 | M4: =NOVEMBRE!M22 -> 3075.9 | N4: =NOVEMBRE!N22 -> -2865.96 | O4: =NOVEMBRE!O22 -> 0
A5: =$A$4 -> 2018-12-01 | B5: =ECHEANCIER!C4 -> Vir recu | C5: =ECHEANCIER!D4 -> ARCO-CIPC | D5: =ECHEANCIER!E4 -> Retraite | E5: =IF($A5<=TODAY(),ECHEANCIER!$F4,0) -> 0 | F5: =SUM(F4)+(E5) -> 10165.98 | I5: =SUM(I4)+(H5) -> 15045 | K5: =IF($D5="Retraite",($E5),0) -> 0 | L5: =IF($D5="rec div",($E5+H5),0) -> 0 | M5: =IF($D5="C Port",($E5),0) -> 0 | N5: =IF($D5="dep div",($E5),0) -> 0 | O5: =IF($D5="divers",($E5),0) -> 0
A6: =$A$4 -> 2018-12-01 | B6: =ECHEANCIER!C5 -> Vir recu | C6: =ECHEANCIER!D5 -> ARCO-CPM | D6: =ECHEANCIER!E5 -> Retraite | E6: =IF($A6<=TODAY(),ECHEANCIER!$F5,0) -> 0 | F6: =SUM(F5+E6) -> 10165.98 | I6: =SUM(I5)+(H6) -> 15045 | K6: 0 | L6: 0 | M6: 0 | N6: 0 | O6: 0
A7: =$A$4+4 -> 2018-12-05 | B7: =ECHEANCIER!C6 -> Prel | C7: =ECHEANCIER!D6 -> ST CHRIST | D7: =ECHEANCIER!E6 -> C Port | E7: =IF(AND($A7<=TODAY(),$D7="c port",OR($A$1="mars",$A$1="juin",$A$1="septembre",$A$1="decembre")),ECHEANCIER!$F6,0) -> 0 | F7: 10165.98 | I7: 15045 | K7: 0 | L7: 0 | M7: 0 | N7: 0 | O7: 0
A8: =$A$4+4 -> 2018-12-05 | B8: =ECHEANCIER!C7 -> Prel | C8: =ECHEANCIER!D7 -> UNEO | D8: =ECHEANCIER!E7 -> Dep Div | E8: =IF($A8<=TODAY(),ECHEANCIER!$F7,0) -> 0 | F8: 10165.98 | I8: 15045 | K8: 0 | L8: 0 | M8: 0 | N8: 0 | O8: 0
A9: =$A$4+9 -> 2018-12-10 | B9: =ECHEANCIER!C8 -> Prel | C9: =ECHEANCIER!D8 -> FREE | D9: =ECHEANCIER!E8 -> Dep Div | E9: =IF($A9<=TODAY(),ECHEANCIER!$F8,0) -> 0 | F9: 10165.98 | I9: =SUM(I8)+(H9) -> 15045 | K9: 0 | L9: 0 | M9: 0 | N9: 0 | O9: 0
A10: =$A$4+9 -> 2018-12-10 | B10: =ECHEANCIER!C9 -> Prel | C10: =ECHEANCIER!D9 -> ENF MEKONG | D10: =ECHEANCIER!E9 -> Dep Div | E10: =IF($A10<=TODAY(),ECHEANCIER!$F9,0) -> 0 | F10: 10165.98 | I10: 15045 | K10: 0 | L10: 0 | M10: 0 | N10: 0 | O10: 0
A11: =$A$4+9 -> 2018-12-10 | B11: =ECHEANCIER!C10 -> Prel | C11: =ECHEANCIER!D10 -> A.L.M. | D11: =ECHEANCIER!E10 -> Dep Div | E11: =IF($A11<=TODAY(),ECHEANCIER!$F10,0) -> 0 | F11: 10165.98 | I11: 15045 | K11: 0 | L11: 0 | M11: 0 | N11: 0 | O11: 0
A12: =$A$4+14 -> 2018-12-15 | B12: =ECHEANCIER!C11 -> Prel | C12: =ECHEANCIER!D11 -> T.P.ANG N | D12: =ECHEANCIER!E11 -> Dep Div | E12: =IF($A12<=TODAY(),ECHEANCIER!$F11,0) -> 0 | F12: 10165.98 | I12: 15045 | K12: 0 | L12: 0 | M12: 0 | N12: 0 | O12: 0
A13: =$A$4+16 -> 2018-12-17 | B13: =ECHEANCIER!C12 -> Vir recu | C13: =ECHEANCIER!D12 -> LUTZ | D13: =ECHEANCIER!E12 -> C Port | E13: =IF($A13<=TODAY(),ECHEANCIER!$F12,0) -> 0 | F13: 10165.98 | I13: 15045 | K13: 0 | L13: 0 | M13: 0 | N13: 0 | O13: 0
A14: =$A$4+19 -> 2018-12-20 | B14: =ECHEANCIER!C13 -> Prel | C14: =ECHEANCIER!D13 -> ENGIE | D14: =ECHEANCIER!E13 -> Dep Div | E14: =IF($A14<=TODAY(),ECHEANCIER!$F13,0) -> 0 | F14: 10165.98 | I14: 15045 | K14: 0 | L14: 0 | M14: 0 | N14: 0 | O14: 0
A15: =$A$4+25 -> 2018-12-26 | B15: =ECHEANCIER!C14 -> Vir recu | C15: =ECHEANCIER!D14 -> MONDIALE | D15: =ECHEANCIER!E14 -> Retraite | E15: =IF(AND($A15<=TODAY(),$D15="retraite",OR($A$1="mars",$A$1="juin",$A$1="septembre",$A$1="decembre")),ECHEANCIER!$F14,0) -> 0 | F15: 10165.98 | I15: 15045 | K15: 0 | L15: 0 | M15: 0 | N15: 0 | O15: 0
A16: =$A$4+25 -> 2018-12-26 | B16: =ECHEANCIER!C15 -> Prel | C16: =ECHEANCIER!D15 -> C. OUEST | D16: =ECHEANCIER!E15 -> Dep Div | E16: =IF($A16<=TODAY(),ECHEANCIER!$F15,0) -> 0 | F16: 10165.98 | I16: 15045 | K16: 0 | L16: 0 | M16: 0 | N16: 0 | O16: 0
F17: 10165.98 | I17: 15045 | K17: 0 | L17: 0 | M17: 0 | N17: 0 | O17: 0
F18: 10165.98 | I18: 15045 | K18: 0 | L18: 0 | M18: 0 | N18: 0 | O18: 0
F19: 10165.98 | I19: 15045 | K19: 0 | L19: 0 | M19: 0 | N19: 0 | O19: 0
F20: 10165.98 | I20: 15045 | K20: 0 | L20: 0 | M20: 0 | N20: 0 | O20: 0
E21: =SUM(E5:E20) -> 0 | H21: =SUM(H5:H20) -> 0 | K21: =SUM(K5:K20) -> 0 | L21: =SUM(L5:L20) -> 0 | M21: =SUM(M5:M20) -> 0 | N21: =SUM(N5:N20) -> 0 | O21: =SUM(O5:O20) -> 0
F22: =F20 -> 10165.98 | I22: =I20 -> 15045 | K22: =(K21+K4) -> 8456.04 | L22: =(L21+L4) -> 45 | M22: =(M21+M4) -> 3075.9 | N22: =(N21+N4) -> -2865.96 | O22: =(O21+O4) -> 0
C24: CONTROLE | F24: =(F22)+(I22) -> 25210.98 | K24: =SUM(K21:O21) -> 0 | M24: =(F4)+(I4)+(K24) -> 25210.98
